{"text_format":"1","workbook":"xlsx","n_sheets":10,"sheets":["表紙","マクロ有効化方法","基本情報","①保有機械登録","②保有資材登録","別表①機械一覧","別表②資材一覧","チェックログ","最新","code"],"not_rendered":{"charts":0,"images":6,"macros":1,"external_links":0,"defined_names":385,"comments":0,"pivot_tables":0},"unopened":[],"bounds":{"document_bytes":16777216,"sheet_cells":100000,"rows_first":2000,"rows_last":500,"rows_between":2000,"halvings":0,"cell_chars":16384,"cell_head_chars":4096},"cells_cut":0,"cells_raw":0,"read":"whole","date_system":"1900"}

{"sheet":"表紙","index":0,"n_rows":36,"n_cols":44,"rows_kept":36,"cut":false,"hidden":false,"merged":[[21,1,23,23],[25,1,28,23],[24,1,24,23],[27,26,27,33],[27,34,27,37],[27,38,27,41],[22,26,22,33],[22,34,22,37],[22,38,22,41],[26,26,26,33],[26,34,26,37],[26,38,26,41],[24,26,24,33],[24,34,24,37],[24,38,24,41],[23,26,23,33],[23,34,23,37],[23,38,23,41],[25,26,25,33],[25,34,25,37],[25,38,25,41],[20,26,20,33],[20,34,20,37],[20,38,20,41],[21,26,21,33],[21,34,21,37],[21,38,21,41],[18,26,18,33],[18,34,18,37],[18,38,18,41],[19,26,19,33],[19,34,19,37],[19,38,19,41],[9,38,9,41],[10,1,10,6],[10,7,10,13],[10,26,10,33],[10,34,10,37],[10,38,10,41],[9,1,9,6],[9,7,9,13],[9,26,9,33],[9,34,9,37],[7,1,7,6],[7,7,7,13],[7,26,7,33],[7,34,7,37],[7,38,7,41],[8,1,8,6],[8,7,8,13],[8,26,8,33],[8,34,8,37],[8,38,8,41],[4,43,4,47],[5,43,5,47],[6,1,6,6],[6,7,6,13],[6,26,6,33],[6,34,6,37],[6,38,6,41],[11,38,11,41],[12,26,12,33],[12,34,12,37],[12,38,12,41],[13,26,13,33],[13,34,13,37],[13,38,13,41],[11,26,11,33],[11,34,11,37],[17,38,17,41],[14,38,14,41],[15,26,15,33],[15,34,15,37],[15,38,15,41],[16,26,16,33],[16,34,16,37],[16,38,16,41],[12,1,17,23],[14,26,14,33],[14,34,14,37],[17,26,17,33],[17,34,17,37]]}
[]
[null,null,null,null,null,null,null,null,null,null,null,null,null,null,null,null,null,null,null,null,null,null,null,null,null,null,null,null,null,null,null,null,null,null,null,null,null,null,null,null,null,null,null,"システム管理用情報"]
[null,"表紙",null,null,null,null,null,null,null,null,null,null,null,null,null,null,null,null,null,null,null,null,null,null,null,null,null,null,null,null,null,null,null,null,null,null,null,null,null,null,null,null,null,"バージョン：3.3.4"]
[]
[null,"(",{"$f":"AR3","v":"バージョン：3.3.4"},null,null,null,")",null,null,null,null,null,null,null,null,null,null,null,null,null,null,null,null,null,null,null,null,null,null,null,null,null,null,null,null,null,null,null,null,null,null,null,null,"取込み種類*"]
[null,null,null,null,null,null,null,null,null,null,null,null,null,null,null,null,null,null,null,null,null,null,null,null,null,"■協定機関　（必須 １件以上）",null,null,null,null,null,null,null,null,null,null,null,null,null,null,null,null,null,"データ更新"]
[null,"事業者名（必須）",null,null,null,null,null,null,null,null,null,null,null,null,"← 全角文字で入力",null,null,null,null,null,null,null,null,null,null,null,"協定機関",null,null,null,null,null,null,null,"開始日",null,null,null,"終了日"]
[null,"事業者名（カナ）",null,null,null,null,null,null,null,null,null,null,null,null,"← 全角カタカナで入力",null,null,null,null,null,null,null,null,null,null,"例","筑後川河川事務所",null,null,null,null,null,null,null,"2023-04-01",null,null,null,"2024-03-31"]
[null,"ログインユーザID",null,null,null,null,null,null,null,null,null,null,null,null,null,null,null,null,null,null,null,null,null,null,null,1]
[null,"ログインパスワード",null,null,null,null,null,null,null,null,null,null,null,null,null,null,null,null,null,null,null,null,null,null,null,2]
[null,"登録ユーザ権限（必須）",null,null,null,null,null,"協定事業者",null,null,null,null,null,null,null,null,null,null,null,null,null,null,null,null,null,3]
[null,null,null,null,null,null,null,null,null,null,null,null,null,null,null,null,null,null,null,null,null,null,null,null,null,4]
[null,"＜注意書き＞\n・この帳票は、１事業者（１ユーザ）登録用に作成されます。（複数の事業者を同時に入力はできません。）\n・本様式を使用した一括登録では、以下のデータが上書きされます。\n 　①協定機関\n   ②保有機械\n   ③保有資材\n　※既にシステムに①～③のデータを登録している場合は、削除されますのでご注意ください",null,null,null,null,null,null,null,null,null,null,null,null,null,null,null,null,null,null,null,null,null,null,null,5]
[null,null,null,null,null,null,null,null,null,null,null,null,null,null,null,null,null,null,null,null,null,null,null,null,null,6]
[null,null,null,null,null,null,null,null,null,null,null,null,null,null,null,null,null,null,null,null,null,null,null,null,null,7]
[null,null,null,null,null,null,null,null,null,null,null,null,null,null,null,null,null,null,null,null,null,null,null,null,null,8]
[null,null,null,null,null,null,null,null,null,null,null,null,null,null,null,null,null,null,null,null,null,null,null,null,null,9]
[null,null,null,null,null,null,null,null,null,null,null,null,null,null,null,null,null,null,null,null,null,null,null,null,null,10]
[null,null,null,null,null,null,null,null,null,null,null,null,null,null,null,null,null,null,null,null,null,null,null,null,null,11]
[null,null,null,null,null,null,null,null,null,null,null,null,null,null,null,null,null,null,null,null,null,null,null,null,null,12]
[null,"＜備考＞",null,null,null,null,null,null,null,null,null,null,null,null,null,null,null,null,null,null,null,null,null,null,null,13]
[null,"協定機関が20件以上の場合は、以下のように記述ください。\n例)xxxxx事務所(YYYY年MM月DD日～YYYY年MM月DD日)\n建設機械・資材が100件を超える場合は、以下のように記述ください。\n例)建設機械が100件超えています。",null,null,null,null,null,null,null,null,null,null,null,null,null,null,null,null,null,null,null,null,null,null,null,14]
[null,null,null,null,null,null,null,null,null,null,null,null,null,null,null,null,null,null,null,null,null,null,null,null,null,15]
[null,null,null,null,null,null,null,null,null,null,null,null,null,null,null,null,null,null,null,null,null,null,null,null,null,16]
[null,"（記載内容）",null,null,null,null,null,null,null,null,null,null,null,null,null,null,null,null,null,null,null,null,null,null,null,17]
[null,"・\n・",null,null,null,null,null,null,null,null,null,null,null,null,null,null,null,null,null,null,null,null,null,null,null,18]
[null,null,null,null,null,null,null,null,null,null,null,null,null,null,null,null,null,null,null,null,null,null,null,null,null,19]
[null,null,null,null,null,null,null,null,null,null,null,null,null,null,null,null,null,null,null,null,null,null,null,null,null,20]
[null,null,null,null,null,null,null,null,null,null,null,null,null,null,null,null,null,null,null,null,null,null,null,null,null,"※20件以上の場合は、備考に残りを記載ください。"]
[]
[]
[]
["■履歴"]
["2024.04.23 熊本県を選択後熊本市が表示されない対応"]
["2024.09.30 チェック機能の搭載。Versionを 3.1.6 → 3.3.0 とした。"]
["2025.04.17 保有機械・保有資材のリスト表示のためのセル名称の正規化を行なった。Version3.3.2 → 3.3.3 "]

{"sheet":"マクロ有効化方法","index":1,"n_rows":0,"n_cols":0,"rows_kept":0,"cut":false,"hidden":false,"merged":[]}

{"sheet":"基本情報","index":2,"n_rows":31,"n_cols":43,"rows_kept":31,"cut":false,"hidden":false,"merged":[[26,23,26,30],[26,31,26,33],[26,34,26,41],[27,8,27,9],[27,10,27,19],[27,20,27,22],[27,23,27,39],[25,8,25,16],[26,1,27,7],[26,8,26,9],[26,10,26,19],[26,20,26,22],[25,1,25,7],[20,1,20,7],[20,8,20,16],[20,17,20,25],[22,1,22,7],[22,8,22,16],[23,1,23,7],[23,8,23,13],[23,14,23,20],[23,21,23,32],[24,1,24,7],[24,8,24,10],[24,11,24,20],[24,21,24,23],[24,24,24,33],[30,1,30,7],[30,8,30,14],[30,15,30,20],[29,1,29,7],[28,1,28,7],[28,8,28,10],[29,8,29,10],[15,8,15,14],[7,1,7,7],[15,15,15,20],[13,8,13,10],[11,10,11,19],[12,10,12,19],[10,8,10,16],[11,20,11,22],[12,20,12,22],[8,14,8,20],[15,1,15,7],[14,1,14,7],[11,1,12,7],[14,8,14,10],[11,8,11,9],[12,8,12,9],[5,1,5,7],[5,17,5,25],[8,1,8,7],[9,11,9,20],[9,24,9,33],[9,8,9,10],[5,8,5,16],[9,21,9,23],[8,8,8,13],[7,8,7,16],[9,1,9,7],[8,21,8,32],[10,1,10,7],[13,1,13,7],[11,23,11,30],[11,31,11,33],[12,23,12,39],[11,34,11,41]]}
[]
[]
[null,"基本情報",null,null,null,null,null,null,null,null,null,null,null,null,null,null,null,null,null,null,null,null,null,null,null,null,null,null,"注意"]
[null,null,null,null,null,null,null,null,null,null,null,null,null,null,null,null,null,null,null,null,null,null,null,null,null,null,null,null,"緯度経度については、DEG表記で記載ください。"]
[null,null,null,null,null,null,null,null,"大項目",null,null,null,null,null,null,null,null,"小項目",null,null,null,null,null,null,null,null,null,null,"※緯度経度については、地図サービスなどで調査ください。"]
[null,"新業種（必須）",null,null,null,null,null,null,null,null,null,null,null,null,null,null,null,null,null,null,null,null,null,null,null,null,null,null,"※小数点以下６桁まで入力ください。"]
[null,null,null,null,null,null,null,null,null,null,null,null,null,null,null,null,null,null,null,null,null,null,null,null,null,null,null,null,"例（緯度）33.588008　(経度)130.245881"]
[null,"郵便番号（必須）",null,null,null,null,null,null,null,null,null,null,null,null,null,null,null,"例)812-0053"]
[null,"住所（必須）",null,null,null,null,null,null,null,null,null,null,null,null,null,null,null,null,null,null,null,null,null,null,null,null,null,null,null,null,null,null,null,"（県市町村までで可）"]
[null,"緯度経度（必須）",null,null,null,null,null,null,"（緯度）",null,null,null,null,null,null,null,null,null,null,null,null,"（経度）"]
[null,"担当部署"]
[null,"連絡先（推奨）",null,null,null,null,null,null,"氏名",null,null,null,null,null,null,null,null,null,null,null,"電話番号",null,null,null,null,null,null,null,null,null,null,"緊急連絡先",null,null,null,null,null,null,null,null,null,null,"携帯電話可"]
[null,null,null,null,null,null,null,null,"FAX",null,"",null,null,null,null,null,null,null,null,null,"E-mail"]
[null,"国土交通省発注の工事実績",null,null,null,null,null,null,null,null,null,"（過去10年）"]
[null,"オペレータ数",null,null,null,null,null,null,null,null,null,"人　※半角数値で記入ください。"]
[null,"管轄事業所（出張所）",null,null,null,null,null,null,null,null,null,null,null,null,null,null,null,null,null,null,null,"※わからなければ、空欄でも可能です"]
[]
[]
[]
[null,"(記載例)"]
[null,"新業種（必須）",null,null,null,null,null,null,"コンサルタント業務",null,null,null,null,null,null,null,null,"電気通信"]
[]
[null,"郵便番号（必須）",null,null,null,null,null,null,"123-4567",null,null,null,null,null,null,null,null,"例)812-0053"]
[null,"住所（必須）",null,null,null,null,null,null,"福岡県",null,null,null,null,null,"福岡市博多区",null,null,null,null,null,null,"博多駅前xx-xx-xx　xxビル",null,null,null,null,null,null,null,null,null,null,null,"（県市町村までで可）"]
[null,"緯度経度（必須）",null,null,null,null,null,null,"（緯度）",null,null,33.588008000000002,null,null,null,null,null,null,null,null,null,"（経度）",null,null,130.245881]
[null,"担当部署",null,null,null,null,null,null,"建設部"]
[null,"連絡先（推奨）",null,null,null,null,null,null,"氏名",null,"連絡先太郎",null,null,null,null,null,null,null,null,null,"電話番号",null,null,"000-0000-0000",null,null,null,null,null,null,null,"緊急連絡先",null,null,"090-9999-9999",null,null,null,null,null,null,null,"携帯電話可"]
[null,null,null,null,null,null,null,null,"FAX",null,null,null,null,null,null,null,null,null,null,null,"E-mail",null,null,"xxxx@xxxxx.ne.jp"]
[null,"国土交通省発注の工事実績",null,null,null,null,null,null,"有",null,null,"（過去10年）"]
[null,"オペレータ数",null,null,null,null,null,null,3,null,null,"人　※半角数値で記入ください。"]
[null,"管轄事業所（出張所）",null,null,null,null,null,null,"福岡国道事務所",null,null,null,null,null,null,"福岡維持出張所",null,null,null,null,null,"※わからなければ、空欄でも可能です"]

{"sheet":"①保有機械登録","index":3,"n_rows":28,"n_cols":15,"rows_kept":28,"cut":false,"hidden":false,"merged":[[3,11,3,14],[27,1,27,10],[2,2,2,3],[2,4,2,7],[3,2,3,10]]}
[null,null,null,null,null,null,null,null,null,null,"様式－A"]
[null,"■保有機械一覧"]
[]
[null,null,"　①～⑨は、申請時に入力する項目です。",null,null,null,null,null,null,null,null,"　⑩～⑬は、災害協定締結後のシステム登録時に追加入力する項目です。申請時には不要です。"]
[null,null,"①機械種類\n（必須）","②機械名\n（必須）","③機械諸元\n（必須）","④数量\n（必須）","⑤所有\n（必須）","⑥県名\n（必須）","⑦市町村名\n（必須）","⑧番地以降\n（必須）","⑨備考","⑩緯度\n（必須）","⑪経度\n（必須）","⑫機械品名","⑬型番"]
[null,"例","解体・破砕機械","スクラップ解体・処理機","(諸元・規格無し)",10,"自社保有","福岡県","福岡市博多区","東比恵1-2-12",null,33.591141,130.42764,"コマツ","C3PO-xxx"]
[null,1]
[null,2]
[null,3]
[null,4]
[null,5]
[null,6]
[null,7]
[null,8]
[null,9]
[null,10]
[null,11]
[null,12]
[null,13]
[null,14]
[null,15]
[null,16]
[null,17]
[null,18]
[null,19]
[null,20]
[]
[null,"＜注意事項＞\n・①～③の項目は、プルダウンによる選択方式で入力願います。また、①～③の項目は、別エクセルシートの「別表①機械一覧」を参照願います。\n・エクセル上で本様式に21番以降に記入する場合は、21番以降に行を追加ください。\n・エクセル上で本様式の行間は詰めて入力ください。\n・エクセル上で本様式の最大件数は100件となります。(それ以上ある場合は、表紙の備考欄にその旨記載ください。)\n・登録する機械/資材が項目に無い場合は、同等の機械/資材の種類等を選択したうえで、備考欄に機械/資材名を記載ください。"]

{"sheet":"②保有資材登録","index":4,"n_rows":28,"n_cols":13,"rows_kept":28,"cut":false,"hidden":false,"merged":[[3,11,3,12],[27,1,27,10],[2,2,2,3],[2,4,2,7],[3,2,3,10]]}
[null,null,null,null,null,null,null,null,null,null,"様式－B"]
[null,"■保有資材一覧"]
[]
[null,null,"　①～⑨は、申請時に入力する項目です。"]
[null,null,"①資材種類\n（必須）","②資材名\n（必須）","③資材諸元\n（必須）","④数量\n（必須）","⑤所有\n（必須）","⑥県名\n（必須）","⑦市町村名\n（必須）","⑧番地以降\n（必須）","⑨備考","⑩緯度\n（必須）","⑪経度\n（必須）"]
[null,"例","ブロック","擁壁","最大高さ2m未満",10,"自社保有","福岡県","福岡市東区","箱崎5-1-33",null,33.591141,130.42764]
[null,1]
[null,2]
[null,3]
[null,4]
[null,5]
[null,6]
[null,7]
[null,8]
[null,9]
[null,10]
[null,11]
[null,12]
[null,13]
[null,14]
[null,15]
[null,16]
[null,17]
[null,18]
[null,19]
[null,20]
[]
[null,"＜注意事項＞\n・①～③の項目は、プルダウンによる選択方式で入力願います。また、①～③の項目は、別エクセルシートの「別表①機械一覧」を参照願います。\n・エクセル上で本様式に21番以降に記入する場合は、21番以降に行を追加ください。\n・エクセル上で本様式の行間は詰めて入力ください。\n・エクセル上で本様式の最大件数は100件となります。(それ以上ある場合は、表紙の備考欄にその旨記載ください。)\n・登録する機械/資材が項目に無い場合は、同等の機械/資材の種類等を選択したうえで、備考欄に機械/資材名を記載ください。"]

{"sheet":"別表①機械一覧","index":5,"n_rows":289,"n_cols":4,"rows_kept":289,"cut":false,"hidden":false,"merged":[[2,1,34,1],[241,1,288,1],[237,1,240,1],[223,1,236,1],[217,1,222,1],[213,1,216,1],[203,1,212,1],[195,1,202,1],[180,1,194,1],[177,1,179,1],[168,1,176,1],[148,1,167,1],[69,1,96,1],[35,1,68,1],[97,1,127,1],[128,1,147,1],[2,2,7,2],[8,2,15,2],[16,2,20,2],[21,2,26,2],[27,2,28,2],[35,2,37,2],[38,2,41,2],[42,2,51,2],[52,2,56,2],[57,2,60,2],[69,2,76,2],[77,2,84,2],[85,2,89,2],[91,2,92,2],[93,2,94,2],[97,2,101,2],[102,2,105,2],[106,2,108,2],[109,2,111,2],[112,2,115,2],[116,2,119,2],[120,2,123,2],[128,2,130,2],[131,2,133,2],[134,2,136,2],[138,2,141,2],[142,2,144,2],[148,2,150,2],[151,2,155,2],[157,2,159,2],[160,2,161,2],[168,2,170,2],[171,2,172,2],[177,2,178,2],[180,2,183,2],[258,2,287,2],[227,2,228,2],[185,2,188,2],[241,2,242,2],[239,2,240,2],[244,2,246,2],[247,2,249,2]]}
[]
["NO","機械種類","機械名","機械諸元"]
[1,"掘削・積込機械","ブルドーザ","6t級未満"]
[2,null,null,"6t～11t級未満"]
[3,null,null,"11t～21t級未満"]
[4,null,null,"21t～32t級未満"]
[5,null,null,"32t～44t級未満"]
[6,null,null,"44t級以上"]
[8,null,"バックホウ","バケット容量0.28m3未満（山積み）"]
[9,null,null,"バケット容量0.28m3～0.6m3未満（山積み）"]
[10,null,null,"バケット容量0.6m3～1.0m3未満（山積み）"]
[11,null,null,"バケット容量1.0m3～1.4m3未満（山積み）"]
[12,null,null,"バケット容量1.4m3～2.0m3未満（山積み）"]
[13,null,null,"バケット容量2.0m3以上（山積み）"]
[14,null,null,"分解組立型バックホウ"]
[15,null,null,"遠隔操縦式バックホウ"]
[17,null,"クローラローダー","バケット容量0.8m3未満（山積み）"]
[18,null,null,"バケット容量0.8m3～1.3m3未満（山積み）"]
[19,null,null,"バケット容量1.4m3～1.9m3未満（山積み）"]
[20,null,null,"バケット容量1.9m3～3.2m3未満（山積み）"]
[21,null,null,"バケット容量3.2m3以上（山積み）"]
[23,null,"ホイールローダー","バケット容量0.8m3未満（山積み）"]
[24,null,null,"バケット容量0.8m3～1.3m3未満（山積み）"]
[25,null,null,"バケット容量1.3m3～1.9m3未満（山積み）"]
[26,null,null,"バケット容量1.9m3～3.2m3未満（山積み）"]
[27,null,null,"バケット容量3.2m3～4.6m3未満（山積み）"]
[28,null,null,"バケット容量4.6m3以上（山積み）"]
[30,null,"スクレーパ","自走式"]
[31,null,null,"被牽引式"]
[33,null,"ドザーショベル","(諸元・規格無し)"]
[34,null,"ロッカーショベル","(諸元・規格無し)"]
[35,null,"ローディングショベル","(諸元・規格無し)"]
[36,null,"クラムシェル","(諸元・規格無し)"]
[37,null,"泥上掘削機・軟弱地盤用","(諸元・規格無し)"]
[38,null,"掘削・積込機械その他","(諸元・規格無し)"]
[39,"運搬機械","ダンプトラック","積載量6t積未満"]
[40,null,null,"積載量6t～12t積未満"]
[41,null,null,"積載量12t積以上"]
[43,null,"トラック","積載量1.5t積未満"]
[44,null,null,"積載量1.5t～4t積未満"]
[45,null,null,"積載量4t～6t積未満"]
[46,null,null,"積載量6t積以上"]
[48,null,"クレーン装置付トラック","積載量2t～4t積、2t吊未満"]
[49,null,null,"積載量2t～4t積、2t～2.9t吊未満"]
[50,null,null,"積載量2t～4t積、2.9t～4t吊未満"]
[51,null,null,"積載量2t～4t積、4t吊以上"]
[52,null,null,"積載量4t～6t積、2.9t吊未満"]
[53,null,null,"積載量4t～6t積、2.9t～4t吊未満"]
[54,null,null,"積載量4t～6t積、4t吊以上"]
[55,null,null,"積載量6t～10t積、2.9t吊"]
[56,null,null,"積載量6t～10t積、2.9t～4t吊未満"]
[57,null,null,"積載量6t～10t積、4t吊以上"]
[59,null,"不整地運搬車・クローラ型","積載量1t積未満"]
[60,null,null,"積載量1t～3t積未満"]
[61,null,null,"積載量3t～6t積未満"]
[62,null,null,"積載量6t～12t積未満"]
[63,null,null,"積載量12t積以上"]
[65,null,"セミトレーラ","積載量15t未満"]
[66,null,null,"積載量15t～25t積未満"]
[67,null,null,"積載量25t～32t積未満"]
[68,null,null,"積載量32t積以上"]
[70,null,"重機運搬車","(諸元・規格無し)"]
[71,null,"リフト車","(諸元・規格無し)"]
[72,null,"一輪車・ねこ","(諸元・規格無し)"]
[73,null,"台車","(諸元・規格無し)"]
[74,null,"リヤカー","(諸元・規格無し)"]
[75,null,"ベルトコンベアー","(諸元・規格無し)"]
[76,null,"コンテナジャッキ","(諸元・規格無し)"]
[77,null,"運搬機械その他","(諸元・規格無し)"]
[78,"クレーン・荷役機械","クローラークレーン","吊上能力20t吊未満"]
[79,null,null,"吊上能力20t～40t吊未満"]
[80,null,null,"吊上能力40t～80t吊未満"]
[81,null,null,"吊上能力80t～100t吊未満"]
[82,null,null,"吊上能力100t～300t吊未満"]
[83,null,null,"吊上能力300t～600t吊未満"]
[84,null,null,"吊上能力600t～800t吊未満"]
[85,null,null,"吊上能力800t吊以上"]
[87,null,"トラッククレーン","吊上能力10t吊未満"]
[88,null,null,"吊上能力10t～20t吊未満"]
[89,null,null,"吊上能力20t～40t吊未満"]
[90,null,null,"吊上能力40t～80t吊未満"]
[91,null,null,"吊上能力80t～150t吊未満"]
[92,null,null,"吊上能力150t～300t吊未満"]
[93,null,null,"吊上能力300t～500t吊未満"]
[94,null,null,"吊上能力500t吊以上"]
[96,null,"ラフテレーンクレーン","吊上能力10t吊未満"]
[97,null,null,"吊上能力10t～20t吊未満"]
[98,null,null,"吊上能力20t～40t吊未満"]
[99,null,null,"吊上能力40t～80t吊未満"]
[100,null,null,"吊上能力80t吊以上"]
[102,null,"カニクレーン","(諸元・規格無し)"]
[103,null,"フォークリフト","2t級未満"]
[104,null,null,"2t級以上"]
[106,null,"高所作業車","10m未満"]
[107,null,null,"10m以上"]
[109,null,"旋回機重船","(諸元・規格無し)"]
[110,null,"クレーン・荷役機械その他","(諸元・規格無し)"]
[111,"基礎工事用機械","バイブロハンマ","30KW未満"]
[112,null,null,"30KW～60KW未満"]
[113,null,null,"60KW～100KW未満"]
[114,null,null,"100KW～200KW未満"]
[115,null,null,"200KW以上"]
[117,null,"油圧ハンマ","ラム質量2t未満"]
[118,null,null,"ラム質量2t～6t未満"]
[119,null,null,"ラム質量6t～10t未満"]
[120,null,null,"ラム質量10t以上"]
[122,null,"油圧式杭圧入引抜機","100KW未満"]
[123,null,null,"100KW～200KW未満"]
[124,null,null,"200KW以上"]
[126,null,"ディーゼルパイルハンマ","ラム質量6t未満"]
[127,null,null,"ラム質量6t～10t未満"]
[128,null,null,"ラム質量10t以上"]
[130,null,"アースオーガー","最大掘削口径 250㎜未満"]
[131,null,null,"最大掘削口径 250㎜～500㎜未満"]
[132,null,null,"最大掘削口径 500㎜～1,000㎜未満"]
[133,null,null,"最大掘削口径1,000㎜以上"]
[135,null,"アースドリル","最大口径 1,500㎜未満"]
[136,null,null,"最大口径 1,500㎜～2,000㎜未満"]
[137,null,null,"最大口径 2,000㎜～3,000㎜未満"]
[138,null,null,"最大口径 3,000㎜以上"]
[140,null,"オールケーシング掘削","掘削口径 1,500㎜未満"]
[141,null,null,"掘削口径 1,500㎜～2,000㎜未満"]
[142,null,null,"掘削口径 2,000㎜～3,000㎜未満"]
[143,null,null,"掘削口径 3,000㎜以上"]
[145,null,"地盤改良機","(諸元・規格無し)"]
[146,null,"グラウトポンプ","(諸元・規格無し)"]
[147,null,"グラウトミキサー","(諸元・規格無し)"]
[148,null,"基礎工事用機械その他","(諸元・規格無し)"]
[149,"路盤用・締固め機械","モータグレーダー","ブレード幅3.1m未満"]
[150,null,null,"ブレード幅3.1m～4m未満"]
[151,null,null,"ブレード幅4m以上"]
[153,null,"ロードローラー","質量10t未満"]
[154,null,null,"質量10t～12t未満"]
[155,null,null,"質量12t以上"]
[157,null,"タイヤローラー","質量8t未満"]
[158,null,null,"質量8t～20t未満"]
[159,null,null,"質量20t以上"]
[161,null,"マカダムローラー","(諸元・規格無し)"]
[162,null,"振動ローラー","質量6t未満"]
[163,null,null,"質量6t～10t未満"]
[164,null,null,"質量10t以上"]
[165,null,null,"ハンドガイド式"]
[167,null,"タンピングローラー","質量19t未満"]
[168,null,null,"質量19t～30t未満"]
[169,null,null,"質量30t以上"]
[171,null,"振動コンパクタ","(諸元・規格無し)"]
[172,null,"ランマ・タンパ","(諸元・規格無し)"]
[173,null,"路盤用・締固め機械その他","(諸元・規格無し)"]
[174,"せん孔機械及び削岩機械","ボーリングマシン","油圧式"]
[175,null,null,"大口径（300mm以上）"]
[176,null,null,"小口径（300mm未満）"]
[178,null,"ダウンザホールハンマ","掘削孔径 86㎜未満"]
[179,null,null,"掘削孔径 86～302㎜未満"]
[180,null,null,"掘削孔径302～508㎜未満"]
[181,null,null,"掘削孔径508～762㎜未満"]
[182,null,null,"掘削孔径762㎜以上"]
[184,null,"コンクリートブレーカ","(諸元・規格無し)"]
[185,null,"大型ブレーカ","ブレーカ 600㎏未満"]
[186,null,null,"ブレーカ 600㎏～1300㎏級未満"]
[187,null,null,"ブレーカ 1300㎏級以上"]
[189,null,"クローラドリル","非搭乗式"]
[190,null,null,"搭乗式"]
[192,null,"アンカードリル","(諸元・規格無し)"]
[193,null,"空圧ドリフタ","(諸元・規格無し)"]
[194,null,"油圧ドリフタ","(諸元・規格無し)"]
[195,null,"シンカ","(諸元・規格無し)"]
[196,null,"ストーパ","(諸元・規格無し)"]
[197,null,"せん孔機械及び削岩機械その他","(諸元・規格無し)"]
[198,"コンクリート機械","コンクリートプラント","ミキサー容量1m3未満"]
[199,null,null,"ミキサー容量1m3～2m3未満"]
[200,null,null,"ミキサー容量2m3以上"]
[202,null,"コンクリートポンプ車","圧送能力100m3/h未満"]
[203,null,null,"圧送能力100m3/h以上"]
[205,null,"コンクリート吹付機","(諸元・規格無し)"]
[206,null,"モルタルガン","(諸元・規格無し)"]
[207,null,"鋼製バケット","(諸元・規格無し)"]
[208,null,"コンクリート機械その他","(諸元・規格無し)"]
[209,"舗装用機械","アスファルトフィニッシャ","舗装幅6m未満"]
[210,null,null,"舗装幅6m以上"]
[212,null,"舗装用機械その他","(諸元・規格無し)"]
[213,"道路維持用機械","路面清掃車","ブラシ式"]
[214,null,null,"真空式"]
[216,null,null,"ホッパ容量5m3未満"]
[217,null,null,"ホッパ容量5m3以上"]
[219,null,"排水管清掃車","(諸元・規格無し)"]
[220,null,"散水車","タンク容量3,000L未満"]
[221,null,null,"タンク容量3,000L～6,000L未満"]
[222,null,null,"タンク容量6,000L～8,000L未満"]
[223,null,null,"タンク容量8,000L以上"]
[225,null,"スイーパー","(諸元・規格無し)"]
[226,null,"ガードレール支柱打込車","(諸元・規格無し)"]
[227,null,"汚泥吸引車","(諸元・規格無し)"]
[228,null,"水循環式排水管清掃車","(諸元・規格無し)"]
[229,null,"高圧洗浄車","(諸元・規格無し)"]
[230,null,"道路維持用機械その他","(諸元・規格無し)"]
[231,"リサイクル機械","コンクリート破砕機","(諸元・規格無し)"]
[232,null,"自走式破砕機","(諸元・規格無し)"]
[233,null,"自走式土質改良機","(諸元・規格無し)"]
[234,null,"自走式木材破砕機","(諸元・規格無し)"]
[235,null,"自走式分別機","(諸元・規格無し)"]
[236,null,"自走式２軸破砕機","(諸元・規格無し)"]
[237,null,"削岩機","割石機"]
[239,null,"リサイクル機械その他","(諸元・規格無し)"]
[240,"解体・破砕機械","木造家屋解体機","(諸元・規格無し)"]
[241,null,"コンクリート構造物解体機","(諸元・規格無し)"]
[242,null,"鉄筋・鉄骨構造物解体機","(諸元・規格無し)"]
[243,null,"スクラップ解体・処理機","(諸元・規格無し)"]
[244,null,"コンクリートカッター","(諸元・規格無し)"]
[245,null,"ワイヤソー","(諸元・規格無し)"]
[246,null,"エンジンカッター","(諸元・規格無し)"]
[247,null,"高速切断機","(諸元・規格無し)"]
[248,null,"チェーンソウ","(諸元・規格無し)"]
[249,null,"解体・破砕機械その他","(諸元・規格無し)"]
[250,"簡易遠隔操縦装置","バックホウ用","(諸元・規格無し)"]
[251,null,"ブルドーザ用","(諸元・規格無し)"]
[252,null,"クローダンプ用","(諸元・規格無し)"]
[253,null,"簡易遠隔操縦装置その他","(諸元・規格無し)"]
[254,"照明機材","投光器","(諸元・規格無し)"]
[255,null,"回転灯","(諸元・規格無し)"]
[256,null,"照明灯","(諸元・規格無し)"]
[257,null,"保安灯","(諸元・規格無し)"]
[258,null,"照明車","(諸元・規格無し)"]
[259,null,"照明機材その他","(諸元・規格無し)"]
[260,"災害対策用車両","対策本部車","(諸元・規格無し)"]
[261,null,"情報収集車","(諸元・規格無し)"]
[262,null,"待機支援車","(諸元・規格無し)"]
[263,null,"排水ポンプ車","(諸元・規格無し)"]
[264,null,"橋梁点検車","歩廊式"]
[265,null,null,"油圧屈伸式"]
[267,null,"作業車","(諸元・規格無し)"]
[268,null,"マイクロバス","(諸元・規格無し)"]
[269,null,"工事標識車","(諸元・規格無し)"]
[270,null,"給水車","(諸元・規格無し)"]
[271,null,"連絡車","(諸元・規格無し)"]
[272,null,"ジープ","(諸元・規格無し)"]
[273,null,"補助カメラ車","(諸元・規格無し)"]
[274,null,"災害対策用車両その他","(諸元・規格無し)"]
[275,"測量機材","UAV_ドローン等","(諸元・規格無し)"]
[276,null,"トータルステーション","(諸元・規格無し)"]
[277,null,"レーザースキャナ","無人航空機搭載型"]
[278,null,null,"地上型"]
[279,"その他機械","空気圧縮機","吐出量20m3/min未満"]
[280,null,null,"吐出量20m3/min以上"]
[282,null,"空気入れ","(諸元・規格無し)"]
[283,null,"発動発電機","定格容量100KVA未満"]
[284,null,null,"定格容量100KVA～300KVA未満"]
[285,null,null,"定格容量300KVA以上"]
[287,null,"工事用水中ポンプ","口径100㎜未満"]
[288,null,null,"口径100㎜～200㎜未満"]
[289,null,null,"口径200㎜以上"]
[291,null,"工事用高圧洗浄機","(諸元・規格無し)"]
[292,null,"土のう造成機","(諸元・規格無し)"]
[293,null,"無人ヘリコプター","(諸元・規格無し)"]
[294,null,"船","(諸元・規格無し)"]
[295,null,"草刈機","(諸元・規格無し)"]
[296,null,"ジェットヒータ","(諸元・規格無し)"]
[297,null,"無線機","(諸元・規格無し)"]
[298,null,"電気溶接機","(諸元・規格無し)"]
[299,null,"工事用器具","スコップ"]
[300,null,null,"カケヤ"]
[301,null,null,"ツルハシ"]
[302,null,null,"ガンヅメ"]
[303,null,null,"クワ"]
[304,null,null,"カキ板・ジョレン"]
[305,null,null,"ノコギリ"]
[306,null,null,"ナタ"]
[307,null,null,"オノ"]
[308,null,null,"ハンマー"]
[309,null,null,"ペンチ"]
[310,null,null,"カマ"]
[311,null,null,"ザル"]
[312,null,null,"テミ"]
[313,null,null,"タコ"]
[314,null,null,"トビ口"]
[315,null,null,"クリッパ"]
[316,null,null,"シノ"]
[317,null,null,"ピック"]
[318,null,null,"バール"]
[319,null,null,"ポール"]
[320,null,null,"ウィンチ"]
[321,null,null,"チェンブロック"]
[322,null,null,"バッチャースケール"]
[323,null,null,"リボンロッド"]
[324,null,null,"巻尺"]
[325,null,null,"はしご"]
[326,null,null,"コードリール"]
[327,null,null,"工事旗"]
[328,null,null,"LED誘導棒"]
[330,null,"その他機械その他","(諸元・規格無し)"]

{"sheet":"別表②資材一覧","index":6,"n_rows":445,"n_cols":4,"rows_kept":445,"cut":false,"hidden":false,"merged":[[5,2,6,2],[7,2,8,2],[9,2,10,2],[13,2,15,2],[2,1,3,1],[4,1,12,1],[2,2,3,2],[29,1,285,1],[286,1,292,1],[286,2,287,2],[288,2,289,2],[290,2,291,2],[197,2,204,2],[189,2,196,2],[181,2,188,2],[157,2,164,2],[149,2,156,2],[141,2,148,2],[133,2,140,2],[125,2,132,2],[37,2,44,2],[173,2,180,2],[165,2,172,2],[237,2,244,2],[293,1,322,1],[323,1,326,1],[327,1,339,1],[16,2,17,2],[18,2,20,2],[22,2,23,2],[13,1,21,1],[22,1,28,1],[307,2,312,2],[305,2,306,2],[303,2,304,2],[301,2,302,2],[299,2,300,2],[323,2,324,2],[317,2,321,2],[315,2,316,2],[313,2,314,2],[277,2,284,2],[269,2,276,2],[261,2,268,2],[253,2,260,2],[245,2,252,2],[293,2,296,2],[297,2,298,2],[373,1,383,1],[384,1,392,1],[393,1,418,1],[419,1,422,1],[423,1,425,1],[340,1,345,1],[346,1,349,1],[350,1,356,1],[357,1,367,1],[368,1,372,1],[426,1,444,1],[426,2,428,2],[429,2,431,2],[432,2,433,2],[434,2,435,2],[436,2,437,2],[438,2,439,2],[440,2,441,2],[442,2,443,2],[390,2,391,2],[388,2,389,2],[386,2,387,2],[384,2,385,2],[374,2,381,2],[412,2,417,2],[410,2,411,2],[400,2,409,2],[397,2,399,2],[393,2,396,2],[341,2,342,2],[327,2,328,2],[329,2,331,2],[334,2,336,2],[362,2,363,2],[357,2,359,2],[350,2,353,2],[354,2,355,2],[346,2,348,2],[229,2,236,2],[221,2,228,2],[213,2,220,2],[205,2,212,2],[117,2,124,2],[109,2,116,2],[29,2,36,2],[24,2,25,2],[26,2,27,2],[77,2,84,2],[69,2,76,2],[61,2,68,2],[53,2,60,2],[45,2,52,2],[101,2,108,2],[93,2,100,2],[85,2,92,2]]}
[]
["NO","資材種類","資材名","資材諸元"]
[1,"擁壁","コンクリート擁壁","最大高さ2m未満"]
[2,null,null,"最大高さ2m以上"]
[4,"ブロック","コンクリートブロック","300㎜×400㎜控350㎜"]
[{"$f":"ROW()-3","v":3},null,"張ブロック","厚10㎝"]
[4,null,null,"厚12㎝"]
[5,null,"連節ブロック","厚20㎝"]
[6,null,null,"厚22㎝"]
[7,null,"大型ブロック","1000㎜×1000㎜"]
[8,null,null,"1000㎜×2000㎜"]
[9,null,"ブロックマット","厚10㎝"]
[10,null,"ブロックその他","(諸元・規格無し)"]
[11,"側溝類","U形側溝","内幅300㎜以下"]
[12,null,null,"内幅500㎜以下"]
[13,null,null,"側溝ふた"]
[14,null,"函【管】渠形側溝","内幅300㎜以下"]
[15,null,null,"内幅500㎜以下"]
[16,null,"自由勾配側溝","内幅300㎜以下"]
[17,null,null,"内幅500㎜以下"]
[18,null,null,"側溝ふた"]
[19,null,"側溝類その他","(諸元・規格無し)"]
[20,"函【管】類","ヒューム管","内径1000㎜未満"]
[21,null,null,"内径1000㎜以上"]
[22,null,"コンクリート台付管","内径500㎜未満"]
[23,null,null,"内径500㎜以上"]
[24,null,"ボックスカルバート","内幅1000㎜未満"]
[25,null,null,"内幅1000㎜以上"]
[26,null,"函【管】類その他","(諸元・規格無し)"]
[27,"根固めブロック","□ブロック","0.5t"]
[28,null,null,"1t"]
[29,null,null,"1.5t"]
[30,null,null,"2t"]
[31,null,null,"2.5t"]
[32,null,null,"3t"]
[33,null,null,"4t"]
[34,null,null,"5t"]
[35,null,"ブロック0.6×0.6×0.6","0.5t"]
[36,null,null,"1t"]
[37,null,null,"1.5t"]
[38,null,null,"2t"]
[39,null,null,"2.5t"]
[40,null,null,"3t"]
[41,null,null,"4t"]
[42,null,null,"5t"]
[43,null,"アクモン","0.5t"]
[44,null,null,"1t"]
[45,null,null,"1.5t"]
[46,null,null,"2t"]
[47,null,null,"2.5t"]
[48,null,null,"3t"]
[49,null,null,"4t"]
[50,null,null,"5t"]
[51,null,"エックスブロック","0.5t"]
[52,null,null,"1t"]
[{"$f":"ROW()-3","v":53},null,null,"1.5t"]
[54,null,null,"2t"]
[55,null,null,"2.5t"]
[56,null,null,"3t"]
[57,null,null,"4t"]
[58,null,null,"5t"]
[59,null,"ガンマエルブロック","0.5t"]
[60,null,null,"1t"]
[61,null,null,"1.5t"]
[62,null,null,"2t"]
[63,null,null,"2.5t"]
[64,null,null,"3t"]
[65,null,null,"4t"]
[66,null,null,"5t"]
[67,null,"クラックス","0.5t"]
[68,null,null,"1t"]
[69,null,null,"1.5t"]
[70,null,null,"2t"]
[71,null,null,"2.5t"]
[72,null,null,"3t"]
[73,null,null,"4t"]
[74,null,null,"5t"]
[75,null,"クリンガー","0.5t"]
[76,null,null,"1t"]
[77,null,null,"1.5t"]
[78,null,null,"2t"]
[79,null,null,"2.5t"]
[80,null,null,"3t"]
[81,null,null,"4t"]
[82,null,null,"5t"]
[83,null,"クロスブロック","0.5t"]
[84,null,null,"1t"]
[85,null,null,"1.5t"]
[86,null,null,"2t"]
[87,null,null,"2.5t"]
[88,null,null,"3t"]
[89,null,null,"4t"]
[90,null,null,"5t"]
[91,null,"コーケンブロック","0.5t"]
[92,null,null,"1t"]
[93,null,null,"1.5t"]
[94,null,null,"2t"]
[95,null,null,"2.5t"]
[96,null,null,"3t"]
[97,null,null,"4t"]
[98,null,null,"5t"]
[99,null,"コンクリート1400×1400×600","0.5t"]
[100,null,null,"1t"]
[101,null,null,"1.5t"]
[102,null,null,"2t"]
[103,null,null,"2.5t"]
[104,null,null,"3t"]
[105,null,null,"4t"]
[106,null,null,"5t"]
[107,null,"コンクリート700×700×550","0.5t"]
[108,null,null,"1t"]
[109,null,null,"1.5t"]
[{"$f":"ROW()-3","v":110},null,null,"2t"]
[111,null,null,"2.5t"]
[112,null,null,"3t"]
[113,null,null,"4t"]
[114,null,null,"5t"]
[115,null,"三基ブロック","0.5t"]
[116,null,null,"1t"]
[117,null,null,"1.5t"]
[118,null,null,"2t"]
[119,null,null,"2.5t"]
[120,null,null,"3t"]
[121,null,null,"4t"]
[122,null,null,"5t"]
[123,null,"三脚ブロック","0.5t"]
[124,null,null,"1t"]
[125,null,null,"1.5t"]
[126,null,null,"2t"]
[127,null,null,"2.5t"]
[128,null,null,"3t"]
[129,null,null,"4t"]
[130,null,null,"5t"]
[131,null,"三連ブロック","0.5t"]
[132,null,null,"1t"]
[133,null,null,"1.5t"]
[134,null,null,"2t"]
[135,null,null,"2.5t"]
[136,null,null,"3t"]
[137,null,null,"4t"]
[138,null,null,"5t"]
[139,null,"六脚ブロック","0.5t"]
[140,null,null,"1t"]
[141,null,null,"1.5t"]
[142,null,null,"2t"]
[143,null,null,"2.5t"]
[144,null,null,"3t"]
[145,null,null,"4t"]
[146,null,null,"5t"]
[147,null,"サンロック","0.5t"]
[148,null,null,"1t"]
[149,null,null,"1.5t"]
[150,null,null,"2t"]
[151,null,null,"2.5t"]
[152,null,null,"3t"]
[153,null,null,"4t"]
[154,null,null,"5t"]
[155,null,"シェークブロック","0.5t"]
[156,null,null,"1t"]
[157,null,null,"1.5t"]
[158,null,null,"2t"]
[159,null,null,"2.5t"]
[160,null,null,"3t"]
[161,null,null,"4t"]
[162,null,null,"5t"]
[163,null,"ジュゴン","0.5t"]
[164,null,null,"1t"]
[165,null,null,"1.5t"]
[166,null,null,"2t"]
[{"$f":"ROW()-3","v":167},null,null,"2.5t"]
[168,null,null,"3t"]
[169,null,null,"4t"]
[170,null,null,"5t"]
[171,null,"スタビック","0.5t"]
[172,null,null,"1t"]
[173,null,null,"1.5t"]
[174,null,null,"2t"]
[175,null,null,"2.5t"]
[176,null,null,"3t"]
[177,null,null,"4t"]
[178,null,null,"5t"]
[179,null,"セッカブロック","0.5t"]
[180,null,null,"1t"]
[181,null,null,"1.5t"]
[182,null,null,"2t"]
[183,null,null,"2.5t"]
[184,null,null,"3t"]
[185,null,null,"4t"]
[186,null,null,"5t"]
[187,null,"中空三角ブロック","0.5t"]
[188,null,null,"1t"]
[189,null,null,"1.5t"]
[190,null,null,"2t"]
[191,null,null,"2.5t"]
[192,null,null,"3t"]
[193,null,null,"4t"]
[194,null,null,"5t"]
[195,null,"テトラブロック","0.5t"]
[196,null,null,"1t"]
[197,null,null,"1.5t"]
[198,null,null,"2t"]
[199,null,null,"2.5t"]
[200,null,null,"3t"]
[201,null,null,"4t"]
[202,null,null,"5t"]
[203,null,"テトラポット","0.5t"]
[204,null,null,"1t"]
[205,null,null,"1.5t"]
[206,null,null,"2t"]
[207,null,null,"2.5t"]
[208,null,null,"3t"]
[209,null,null,"4t"]
[210,null,null,"5t"]
[211,null,"凸型ブロック","0.5t"]
[212,null,null,"1t"]
[213,null,null,"1.5t"]
[214,null,null,"2t"]
[215,null,null,"2.5t"]
[216,null,null,"3t"]
[217,null,null,"4t"]
[218,null,null,"5t"]
[219,null,"パラクロス","0.5t"]
[220,null,null,"1t"]
[221,null,null,"1.5t"]
[222,null,null,"2t"]
[223,null,null,"2.5t"]
[{"$f":"ROW()-3","v":224},null,null,"3t"]
[225,null,null,"4t"]
[226,null,null,"5t"]
[227,null,"ビーハイブ","0.5t"]
[228,null,null,"1t"]
[229,null,null,"1.5t"]
[230,null,null,"2t"]
[231,null,null,"2.5t"]
[232,null,null,"3t"]
[233,null,null,"4t"]
[234,null,null,"5t"]
[235,null,"袋詰め根固め","0.5t"]
[236,null,null,"1t"]
[237,null,null,"1.5t"]
[238,null,null,"2t"]
[239,null,null,"2.5t"]
[240,null,null,"3t"]
[241,null,null,"4t"]
[242,null,null,"5t"]
[243,null,"プレスロック","0.5t"]
[244,null,null,"1t"]
[245,null,null,"1.5t"]
[246,null,null,"2t"]
[247,null,null,"2.5t"]
[248,null,null,"3t"]
[249,null,null,"4t"]
[250,null,null,"5t"]
[251,null,"ベンチブロック","0.5t"]
[252,null,null,"1t"]
[253,null,null,"1.5t"]
[254,null,null,"2t"]
[255,null,null,"2.5t"]
[256,null,null,"3t"]
[257,null,null,"4t"]
[258,null,null,"5t"]
[259,null,"ホロースケヤー","0.5t"]
[260,null,null,"1t"]
[261,null,null,"1.5t"]
[262,null,null,"2t"]
[263,null,null,"2.5t"]
[264,null,null,"3t"]
[265,null,null,"4t"]
[266,null,null,"5t"]
[267,null,"メタクロス","0.5t"]
[268,null,null,"1t"]
[269,null,null,"1.5t"]
[270,null,null,"2t"]
[271,null,null,"2.5t"]
[272,null,null,"3t"]
[273,null,null,"4t"]
[274,null,null,"5t"]
[275,null,"リーフロック","0.5t"]
[276,null,null,"1t"]
[277,null,null,"1.5t"]
[278,null,null,"2t"]
[279,null,null,"2.5t"]
[280,null,null,"3t"]
[{"$f":"ROW()-3","v":281},null,null,"4t"]
[282,null,null,"5t"]
[283,null,"根固めブロックその他","(諸元・規格無し)"]
[284,"杭","鋼管杭","6m未満"]
[285,null,null,"6m以上"]
[286,null,"鋼杭","6m未満"]
[287,null,null,"6m以上"]
[288,null,"木杭","6m未満"]
[289,null,null,"6m以上"]
[290,null,"杭その他","(諸元・規格無し)"]
[291,"仮設材","H型鋼","H-300　L=6m未満"]
[292,null,null,"H-300　L=6m以上"]
[293,null,null,"H-400　L=6m未満"]
[294,null,null,"H-400　L=6m以上"]
[295,null,"塩ビ管","呼び径　200㎜未満"]
[296,null,null,"呼び径　200㎜以上"]
[297,null,"コルゲート管","直径　1000㎜未満"]
[298,null,null,"直径　1000㎜以上"]
[299,null,"暗渠排水管【高密度ポリエチレン管】","直径　300㎜未満"]
[300,null,null,"直径　300㎜以上"]
[301,null,"覆工板","1000×2000×200"]
[302,null,null,"1000×3000×200"]
[303,null,"簡易土留材【簡易矢板】","幅　3m未満"]
[304,null,null,"幅　3m以上"]
[305,null,"普通鋼矢板","Ⅱ型　10m未満"]
[306,null,null,"Ⅱ型　10m以上"]
[307,null,null,"Ⅲ型　10m未満"]
[308,null,null,"Ⅲ型　10m以上"]
[309,null,null,"Ⅳ型　10m未満"]
[310,null,null,"Ⅳ型　10m以上"]
[311,null,"軽量鋼矢板","5m未満"]
[312,null,null,"5m以上"]
[313,null,"木矢板","5m未満"]
[314,null,null,"5m以上"]
[315,null,"敷鉄板","900×1800"]
[316,null,null,"1200×2400"]
[317,null,null,"1500×3000"]
[318,null,null,"1500×6000"]
[319,null,null,"900×1800"]
[320,null,"仮設材その他","(諸元・規格無し)"]
[321,"仮設施設","仮設トイレ","汲取式"]
[322,null,null,"水洗式"]
[323,null,"仮設ハウス","ユニットハウス"]
[324,null,"仮設施設その他","(諸元・規格無し)"]
[325,"保安資材","仮設ガードレール","4m未満"]
[326,null,null,"4m以上"]
[327,null,"バリケード","パイプ"]
[328,null,null,"鉄板"]
[329,null,null,"プラスチック"]
[{"$f":"ROW()-3","v":330},null,"防護柵【ガードフェンス】","(諸元・規格無し)"]
[331,null,"落石防止網","(諸元・規格無し)"]
[332,null,"看板","工事看板"]
[333,null,null,"矢印方向板"]
[334,null,null,"看板取付金具"]
[335,null,"コーン","(諸元・規格無し)"]
[336,null,"クッションドラム","(諸元・規格無し)"]
[337,null,"保安資材その他","(諸元・規格無し)"]
[338,"石灰・薬剤","石灰","20kg袋入"]
[339,null,"セメント","普通セメント25kg袋入"]
[340,null,null,"高炉セメント25kg袋入"]
[341,null,"塩化カルシウム","25kg袋入"]
[342,null,"塩化ナトリウム","25kg袋入"]
[343,null,"石灰・薬剤その他","(諸元・規格無し)"]
[344,"道路資材","常温合材","バラ"]
[345,null,null,"20kg袋入"]
[346,null,null,"30kg袋入"]
[347,null,"道路資材その他","(諸元・規格無し)"]
[348,"土のう","大型土のう袋【１ｔパック】","耐候性袋"]
[349,null,null,"耐候性製作"]
[350,null,null,"普通袋"]
[351,null,null,"普通製作"]
[352,null,"土のう袋【２５ｋｇ】","袋"]
[353,null,null,"製作"]
[354,null,"土のうその他","(諸元・規格無し)"]
[355,"土砂・砕石","土砂","砂質土"]
[356,null,null,"れき質土"]
[357,null,null,"粘性土"]
[358,null,"砂利","砂利"]
[359,null,"砂","砂"]
[360,null,"砕石","（再生）クラッシャーラン"]
[361,null,null,"（再生）粒調砕石"]
[362,null,"栗石","栗石"]
[363,null,"岩砕","岩砕"]
[364,null,"改良土【盛土・埋戻材】","改良土"]
[365,null,"土砂・砕石その他","(諸元・規格無し)"]
[366,"燃料","軽油","(諸元・規格無し)"]
[367,null,"ガソリン","(諸元・規格無し)"]
[368,null,"灯油","(諸元・規格無し)"]
[369,null,"Ａ重油","(諸元・規格無し)"]
[370,null,"燃料その他","(諸元・規格無し)"]
[371,"ドラム缶","ドラム200L","(諸元・規格無し)"]
[372,null,"中小型缶","120L～200L未満"]
[373,null,null,"100L～120L未満"]
[374,null,null,"80L～100L未満"]
[375,null,null,"60L～80L未満"]
[376,null,null,"50L～60L未満"]
[377,null,null,"40L～50L未満"]
[378,null,null,"20L～40L未満"]
[379,null,null,"20L未満"]
[380,null,"燃料携行缶","(諸元・規格無し)"]
[381,null,"ドラム缶その他","(諸元・規格無し)"]
[382,"シート","ブルーシート","＃2000　3.6m×5.4m"]
[{"$f":"ROW()-3","v":383},null,null,"＃3000　3.6m×5.4m"]
[384,null,"養生マット","1.0m×30m"]
[385,null,null,"1.2m×30m"]
[386,null,"メッシュシート","1.8m×3.6m"]
[387,null,null,"1.8m×5.4m"]
[388,null,"建築用養生シート","1.8m×3.6m"]
[389,null,null,"1.8m×5.4m"]
[390,null,"シートその他","(諸元・規格無し)"]
[391,"油脂・油処理","オイルフェンス","5.0m"]
[392,null,null,"10.0m"]
[393,null,null,"15.0m"]
[394,null,null,"20.0m"]
[395,null,"吸着フェンス","φ7.5㎝×長さ 2.0ｍ"]
[396,null,null,"φ11.0㎝×長さ 2.0ｍ"]
[397,null,null,"φ15.0㎝×長さ 2.0ｍ"]
[398,null,"吸着ﾏｯﾄ","シート状(50㎝×50㎝)"]
[399,null,null,"シート状(65㎝×65㎝)"]
[400,null,null,"ロール状(50㎝×50ｍ)"]
[401,null,null,"ロール状(50㎝×100ｍ)"]
[402,null,null,"ロール状(65㎝×50ｍ)"]
[403,null,null,"ロール状(65㎝×100ｍ)"]
[404,null,null,"ロール状(100㎝×100ｍ)"]
[405,null,null,"粒状（袋詰め）"]
[406,null,null,"万国旗型"]
[407,null,null,"糸状（リボン状）"]
[408,null,"オイル吸着剤","粒状タイプ(5㎏)"]
[409,null,null,"粒状タイプ(10㎏)"]
[410,null,"汚濁防止膜","φ300(1.0m×20m)"]
[411,null,null,"φ300(2.0m×20m)"]
[412,null,null,"φ300(3.0m以上×20m)"]
[413,null,null,"φ400(1.0m×20m)"]
[414,null,null,"φ400(2.0m×20m)"]
[415,null,null,"φ400(3.0m以上×20m)"]
[416,null,"油脂・油処理その他","(諸元・規格無し)"]
[417,"応急組立橋","トラスト橋","(諸元・規格無し)"]
[418,null,"鈑桁橋","(諸元・規格無し)"]
[419,null,"応急組立橋用送出装置","(諸元・規格無し)"]
[420,null,"応急組立橋その他","(諸元・規格無し)"]
[421,"救命資材","救命胴衣","(諸元・規格無し)"]
[422,null,"救命浮環","(諸元・規格無し)"]
[423,null,"救命資材その他","(諸元・規格無し)"]
[424,"その他資材","ロープ","トラロープ"]
[425,null,null,"ワイヤロープ"]
[426,null,null,"縄"]
[427,null,"鉄線","普通鉄線"]
[428,null,null,"なまし鉄線"]
[429,null,null,"亜鉛メッキ鉄線"]
[430,null,"木製型枠","普通合板900×1800"]
[431,null,null,"化粧合板900×1800"]
[432,null,"鋼製型枠","300㎜×1800㎜"]
[433,null,null,"Uクリップ"]
[434,null,"布製型枠","平均厚100㎜"]
[{"$f":"ROW()-3","v":435},null,null,"平均厚200㎜"]
[436,null,"ふとん籠","3.2×150×500×1200㎜"]
[437,null,null,"4.0×150×500×1200㎜"]
[438,null,"じゃかご","3.2×100×φ450㎜"]
[439,null,null,"4.2×100×φ450㎜"]
[440,null,"かごマット","50㎝×100㎝　ﾒｯｷ鉄線"]
[441,null,null,"50㎝×100㎝　被覆鉄線"]
[442,null,"その他資材その他","(諸元・規格無し)"]

{"sheet":"チェックログ","index":7,"n_rows":68,"n_cols":10,"rows_kept":68,"cut":false,"hidden":true,"merged":[]}
["チェックログ"]
[null,"チェック日時","2025年02月10日","18:37:00"]
[null,"エラー件数",{"$f":"COUNTIF(H:H,\"エラー\")","v":9}]
[null,"値自動修正件数",{"$f":"COUNTIF(H:H,\"自動補完\")+COUNTIF(H:H,\"自動処理\")","v":1}]
[]
[]
[]
[]
["チェックリスト"]
["No","項目名","シート名","セル名","値","チェックコード","チェック種別","判定","エラー文","その他"]
[1,"事業者名","表紙","H7","国際地図㈱","0101","必須項目","正常"]
[2,"事業者名","表紙","H7","国際地図㈱","0901","自動補完（全角８文字）","自動補完","８文字以上（８文字になるように空白を補完）","【国際地図㈱】→【国際地図㈱　　　】"]
[3,"事業者名","表紙","H7","国際地図㈱","0205","文字種（環境依存文字）","正常"]
[4,"事業者名","表紙","H7","国際地図㈱",null,"文字種（省略文字）","エラー","省略文字は使用できません。「株式会社」などは省略せずに入力してください。"]
[5,"登録ユーザ権限","表紙","H11","協定事業者","0101","必須項目","正常"]
[6,"登録ユーザ権限","表紙","H11","協定事業者","0401","リスト項目選択","正常"]
[7,"新業種 大項目","基本情報","I6","<<空白>>","0101","必須項目","エラー","必須項目です。入力してください。"]
[8,"新業種 小項目","基本情報","R6","<<空白>>","0101","必須項目","エラー","必須項目です。入力してください。"]
[9,"郵便番号","基本情報","I8","<<空白>>","0101","必須項目","エラー","必須項目です。入力してください。"]
[10,"住所 県名","基本情報","I9","<<空白>>","0101","必須項目","エラー","必須項目です。入力してください。"]
[11,"住所 市町村名","基本情報","O9","<<空白>>","0101","必須項目","エラー","必須項目です。入力してください。"]
[12,"緯度","基本情報","L10","<<空白>>","0101","必須項目","エラー","必須項目です。入力してください。"]
[13,"経度","基本情報","Y10","<<空白>>","0101","必須項目","エラー","必須項目です。入力してください。"]
[14,"協定機関","表紙","AA9","","0102","必須項目（1行目）","エラー","必須項目です。１件以上入力してください。"]
[15,"①機械種類","①保有機械登録","C列","","0501","空白行","正常"]
[16,"①機械種類","①保有機械登録","C7","その他機械","0101","必須項目","正常"]
[17,"①機械種類","①保有機械登録","C7","その他機械","0401","リスト項目選択","正常"]
[18,"②機械名","①保有機械登録","D7","工事用水中ポンプ","0101","必須項目","正常"]
[19,"②機械名","①保有機械登録","D7","工事用水中ポンプ","0401","リスト項目選択","正常"]
[20,"③機械諸元","①保有機械登録","E7","口径200㎜以上","0101","必須項目","正常"]
[21,"③機械諸元","①保有機械登録","E7","口径200㎜以上","0401","リスト項目選択","正常"]
[22,"④数量","①保有機械登録","F7","10","0101","必須項目","正常"]
[23,"④数量","①保有機械登録","F7","10","0201","文字種（数値）","正常"]
[24,"⑤所有","①保有機械登録","G7","自社保有","0101","必須項目","正常"]
[25,"⑤所有","①保有機械登録","G7","自社保有","0401","リスト項目選択","正常"]
[26,"⑥県名","①保有機械登録","H7","福岡県","0101","必須項目","正常"]
[27,"⑥県名","①保有機械登録","H7","福岡県","0401","リスト項目選択","正常"]
[28,"⑦市町村名","①保有機械登録","I7","福岡市博多区","0101","必須項目","正常"]
[29,"⑦市町村名","①保有機械登録","I7","福岡市博多区","0401","リスト項目選択","正常"]
[30,"⑧番地以降","①保有機械登録","J7","東比恵1-2-12㈱","0101","必須項目","正常"]
[31,"⑩緯度","①保有機械登録","L7","33.591141","0101","必須項目","正常"]
[32,"⑩緯度","①保有機械登録","L7","33.591141","0201","文字種（数値）","正常"]
[33,"⑩緯度","①保有機械登録","L7","33.591141","0921","自動処理（小数点以下6桁）","正常"]
[34,"⑪経度","①保有機械登録","M7","130.42764","0101","必須項目","正常"]
[35,"⑪経度","①保有機械登録","M7","130.42764","0201","文字種（数値）","正常"]
[36,"⑪経度","①保有機械登録","M7","130.42764","0921","自動処理（小数点以下6桁）","正常"]
[37,"①資材種類","②保有資材登録","C列","","0501","空白行","正常"]
[38,"①資材種類","②保有資材登録","C7","その他資材","0101","必須項目","正常"]
[39,"①資材種類","②保有資材登録","C7","その他資材","0401","リスト項目選択","正常"]
[40,"②資材名","②保有資材登録","D7","木製型枠","0101","必須項目","正常"]
[41,"②資材名","②保有資材登録","D7","木製型枠","0401","リスト項目選択","正常"]
[42,"③資材諸元","②保有資材登録","E7","化粧合板900×1800","0101","必須項目","正常"]
[43,"③資材諸元","②保有資材登録","E7","化粧合板900×1800","0401","リスト項目選択","正常"]
[44,"④数量","②保有資材登録","F7","10","0101","必須項目","正常"]
[45,"④数量","②保有資材登録","F7","10","0201","文字種（数値）","正常"]
[46,"⑤所有","②保有資材登録","G7","自社保有","0101","必須項目","正常"]
[47,"⑤所有","②保有資材登録","G7","自社保有","0401","リスト項目選択","正常"]
[48,"⑥県名","②保有資材登録","H7","福岡県","0101","必須項目","正常"]
[49,"⑥県名","②保有資材登録","H7","福岡県","0401","リスト項目選択","正常"]
[50,"⑦市町村名","②保有資材登録","I7","福岡市東区","0101","必須項目","正常"]
[51,"⑦市町村名","②保有資材登録","I7","福岡市東区","0401","リスト項目選択","正常"]
[52,"⑧番地以降","②保有資材登録","J7","箱崎5-1-33","0101","必須項目","正常"]
[53,"⑩緯度","②保有資材登録","L7","33.591141","0101","必須項目","正常"]
[54,"⑩緯度","②保有資材登録","L7","33.591141","0201","文字種（数値）","正常"]
[55,"⑩緯度","②保有資材登録","L7","33.591141","0921","自動処理（小数点以下6桁）","正常"]
[56,"⑪経度","②保有資材登録","M7","130.42764","0101","必須項目","正常"]
[57,"⑪経度","②保有資材登録","M7","130.42764","0201","文字種（数値）","正常"]
[58,"⑪経度","②保有資材登録","M7","130.42764","0921","自動処理（小数点以下6桁）","正常"]

{"sheet":"最新","index":8,"n_rows":255,"n_cols":26,"rows_kept":255,"cut":false,"hidden":true,"merged":[]}
[null,"新業種",null,null,"新業種",null,null,null,"県",null,null,"市",null,null,null,"管轄事務所",null,null,"出張所"]
[null,"id","name",null,"id","id_large","name",null,"id","name",null,"id","pref_id","name",null,"id","name",null,"id","office_id","office_sub_id","name",null,"所有",null,"ユーザ権限"]
[null,1,"土木工事",null,1,1,"土木",null,1,"福岡県",null,1,1,"北九州市",null,1,"九州地方整備局",null,1,1,0,"防災課",null,"国交省保有",null,"協定事業者"]
[null,2,"機械及び機械設備",null,2,1,"道路",null,2,"佐賀県",null,2,1,"北九州市門司区",null,2,"筑後川河川事務所",null,2,1,1,"河川",null,"自社保有",null,"職員ユーザ(登録)"]
[null,3,"電気通信設備",null,3,1,"河川",null,3,"長崎県",null,3,1,"北九州市若松区",null,3,"遠賀川河川事務所",null,3,1,2,"道路",null,"レンタル・リース"]
[null,4,"コンサルタント業務",null,4,1,"橋梁",null,4,"熊本県",null,4,1,"北九州市戸畑区",null,4,"福岡国道事務所",null,4,1,3,"情報通信技術"]
[null,"名前の管理済20231011",null,null,5,1,"海岸",null,5,"大分県",null,5,1,"北九州市小倉北区",null,5,"北九州国道事務所",null,5,1,4,"施工企画"]
[null,null,null,null,6,1,"砂防",null,6,"宮崎県",null,6,1,"北九州市小倉南区",null,6,"武雄河川事務所",null,6,2,0,"本事務所"]
[null,null,null,null,7,1,"法面",null,7,"鹿児島県",null,7,1,"北九州市八幡東区",null,7,"佐賀国道事務所",null,7,2,1,"日田出張所"]
[null,null,null,null,8,1,"無人化施工",null,"名前の管理済20231011",null,null,8,1,"北九州市八幡西区",null,8,"長崎河川国道事務所",null,8,2,2,"吉井出張所"]
[null,null,null,null,9,1,"砂防無人化",null,null,null,null,9,1,"福岡市",null,10,"熊本河川国道事務所",null,9,2,3,"片ノ瀬出張所"]
[null,null,null,null,10,1,"応急復旧（公園）",null,null,null,null,10,1,"福岡市東区",null,11,"八代河川国道事務所",null,10,2,4,"久留米出張所"]
[null,null,null,null,11,1,"広域支援",null,null,null,null,11,1,"福岡市博多区",null,12,"菊池川河川事務所",null,12,2,6,"大川出張所"]
[null,null,null,null,12,2,"機械設備",null,null,null,null,12,1,"福岡市中央区",null,13,"川辺川ダム砂防事務所",null,13,2,7,"矢部川出張所"]
[null,null,null,null,13,2,"機械",null,null,null,null,13,1,"福岡市南区",null,15,"大分河川国道事務所",null,161,2,9,"品質確保課"]
[null,null,null,null,14,2,"災害対策機械（車両）",null,null,null,null,14,1,"福岡市西区",null,16,"佐伯河川国道事務所",null,15,3,1,"飯塚出張所"]
[null,null,null,null,15,2,"機械設備・災対機械",null,null,null,null,15,1,"福岡市城南区",null,17,"山国川河川事務所",null,16,3,2,"田川出張所"]
[null,null,null,null,16,2,"簡易遠隔操縦装置",null,null,null,null,16,1,"福岡市早良区",null,19,"宮崎河川国道事務所",null,17,3,3,"中間出張所"]
[null,null,null,null,17,2,"応急組立橋",null,null,null,null,17,1,"大牟田市",null,20,"延岡河川国道事務所",null,18,3,4,"宮田出張所"]
[null,null,null,null,18,2,"排水ポンプ設備",null,null,null,null,18,1,"久留米市",null,21,"大隅河川国道事務所",null,19,3,5,"直方出張所"]
[null,null,null,null,19,2,"堰・水門設備",null,null,null,null,19,1,"直方市",null,22,"川内川河川事務所",null,20,3,6,"河口堰管理支所"]
[null,null,null,null,20,2,"小型水門設備",null,null,null,null,20,1,"飯塚市",null,23,"鹿児島国道事務所",null,21,4,0,"本事務所"]
[null,null,null,null,21,2,"水門設備",null,null,null,null,21,1,"田川市",null,24,"筑後川ダム統合管理事務所",null,24,4,3,"久留米維持出張所"]
[null,null,null,null,22,2,"樋門・樋管設備",null,null,null,null,22,1,"柳川市",null,25,"緑川ダム管理所",null,25,4,4,"福岡維持出張所"]
[null,null,null,null,23,2,"水門・樋門樋管",null,null,null,null,23,1,"八女市",null,26,"鶴田ダム管理所",null,26,4,5,"福岡西維持出張所"]
[null,null,null,null,24,2,"排水機場",null,null,null,null,24,1,"筑後市",null,27,"九州技術事務所",null,162,4,6,"久留米維持出張所瀬高庁舎"]
[null,null,null,null,25,2,"排水機場ポンプ設備",null,null,null,null,25,1,"大川市",null,28,"国営海の中道海浜公園事務所",null,163,4,7,"品質確保課"]
[null,null,null,null,26,2,"竜門ダム設備",null,null,null,null,26,1,"行橋市",null,29,"熊本営繕事務所",null,27,5,0,"本事務所"]
[null,null,null,null,27,2,"平成大堰設備",null,null,null,null,27,1,"豊前市",null,30,"鹿児島営繕事務所",null,28,5,1,"八幡維持出張所"]
[null,null,null,null,28,2,"耶馬溪ダム設備",null,null,null,null,28,1,"中間市",null,31,"下関港湾事務所",null,29,5,2,"行橋維持出張所"]
[null,null,null,null,29,3,"光ケーブル",null,null,null,null,29,1,"小郡市",null,32,"北九州港湾・空港整備事務所",null,30,5,3,"筑豊維持出張所"]
[null,null,null,null,30,3,"電気通信",null,null,null,null,30,1,"筑紫野市",null,33,"博多港湾・空港整備事務所",null,31,6,0,"本事務所"]
[null,null,null,null,31,4,"測量",null,null,null,null,31,1,"春日市",null,34,"苅田港湾事務所",null,32,6,1,"牛津出張所"]
[null,null,null,null,32,4,"設計",null,null,null,null,32,1,"大野城市",null,35,"唐津港湾事務所",null,33,6,2,"松浦川出張所"]
[null,null,null,null,33,4,"測量・設計",null,null,null,null,33,1,"宗像市",null,36,"長崎港湾・空港整備事務所",null,34,6,3,"朝日出張所"]
[null,null,null,null,34,4,"測量・航空写真撮影",null,null,null,null,34,1,"太宰府市",null,37,"熊本港湾・空港整備事務所",null,36,6,5,"厳木ダム管理支所"]
[null,null,null,null,35,4,"設計・地質調査",null,null,null,null,35,1,"古賀市",null,38,"別府港湾・空港整備事務所",null,39,7,0,"本事務所"]
[null,null,null,null,36,4,"調査設計業務",null,null,null,null,36,1,"福津市",null,39,"宮崎港湾・空港整備事務所",null,40,7,1,"武雄維持出張所"]
[null,null,null,null,37,4,"調査検討解析",null,null,null,null,37,1,"うきは市",null,40,"鹿児島港湾・空港整備事務所",null,41,7,2,"鳥栖維持出張所"]
[null,null,null,null,38,4,"地質調査",null,null,null,null,38,1,"宮若市",null,41,"志布志港湾事務所",null,42,7,3,"唐津維持出張所"]
[null,null,null,null,39,4,"流量検討・河道計画検討",null,null,null,null,39,1,"嘉麻市",null,42,"関門航路事務所",null,43,8,0,"本事務所"]
[null,null,null,null,40,4,"設計、流量検討・河道計画検討",null,null,null,null,40,1,"朝倉市",null,43,"下関港湾空港技術調査事務所",null,45,8,2,"大村維持出張所"]
[null,null,null,null,41,4,"河道計画検討",null,null,null,null,41,1,"筑紫郡那珂川町",null,44,"有明海沿岸国道事務所",null,165,8,5,"佐世保国道維持出張所"]
[null,null,null,null,42,4,"橋梁",null,null,null,null,42,1,"糟屋郡宇美町",null,46,"阿蘇砂防事務所",null,166,8,6,"小浜維持出張所"]
[null,null,null,null,43,4,"砂防測量観測・調査検討",null,null,null,null,43,1,"糟屋郡篠栗町",null,47,"九州道路メンテナンスセンター",null,182,8,7,"諫早出張所"]
[null,null,null,null,44,4,"航空写真撮影",null,null,null,null,44,1,"糟屋郡志免町",null,49,"西之表港湾事務所",null,183,8,8,"砂防課（雲仙砂防管理センター）"]
[null,null,null,null,45,4,"航空レーザー測量",null,null,null,null,45,1,"糟屋郡須恵町",null,51,"八代復興事務所",null,184,8,9,"西九州道推進室"]
[null,null,null,null,46,4,"応急対策業務",null,null,null,null,46,1,"糟屋郡新宮町",null,53,"佐賀河川事務所",null,49,10,0,"本事務所"]
[null,null,null,null,"名前の管理済20231011",null,null,null,null,null,null,47,1,"糟屋郡久山町",null,54,"本明川ダム工事事務所",null,50,10,1,"白川出張所"]
[null,null,null,null,null,null,null,null,null,null,null,48,1,"糟屋郡粕屋町",null,55,"阿蘇立野ダム管理庁舎",null,51,10,2,"緑川下流出張所"]
[null,null,null,null,null,null,null,null,null,null,null,49,1,"遠賀郡芦屋町",null,null,null,null,52,10,3,"緑川上流出張所"]
[null,null,null,null,null,null,null,null,null,null,null,50,1,"遠賀郡水巻町",null,null,null,null,53,10,4,"阿蘇国道維持出張所"]
[null,null,null,null,null,null,null,null,null,null,null,51,1,"遠賀郡岡垣町",null,null,null,null,54,10,5,"山鹿維持出張所"]
[null,null,null,null,null,null,null,null,null,null,null,52,1,"遠賀郡遠賀町",null,"2023.10.13削除",null,null,55,10,6,"熊本維持出張所"]
[null,null,null,null,null,null,null,null,null,null,null,53,1,"鞍手郡小竹町",null,18,"大分川ダム工事事務所",null,56,10,7,"八代維持出張所"]
[null,null,null,null,null,null,null,null,null,null,null,54,1,"鞍手郡鞍手町",null,45,"熊本復興事務所",null,57,11,0,"本事務所"]
[null,null,null,null,null,null,null,null,null,null,null,55,1,"嘉穂郡桂川町",null,9,"雲仙復興事務所",null,58,11,1,"八代出張所"]
[null,null,null,null,null,null,null,null,null,null,null,56,1,"朝倉郡筑前町",null,null,null,null,59,11,2,"人吉出張所"]
[null,null,null,null,null,null,null,null,null,null,null,57,1,"朝倉郡東峰村",null,"2024.09.11削除",null,null,60,12,0,"本事務所"]
[null,null,null,null,null,null,null,null,null,null,null,58,1,"三井郡大刀洗町",null,14,"立野ダム工事事務所",null,61,12,1,"玉名出張所"]
[null,null,null,null,null,null,null,null,null,null,null,59,1,"三潴郡大木町",null,50,"下関港湾空港事務所",null,62,12,2,"山鹿出張所"]
[null,null,null,null,null,null,null,null,null,null,null,60,1,"八女郡広川町",null,null,null,null,63,12,3,"竜門ダム管理支所"]
[null,null,null,null,null,null,null,null,null,null,null,61,1,"田川郡香春町",null,"20240.09.25削除",null,null,64,13,0,"本事務所"]
[null,null,null,null,null,null,null,null,null,null,null,62,1,"田川郡添田町",null,48,"雲仙砂防管理センター",null,66,13,2,"砂防工事課"]
[null,null,null,null,null,null,null,null,null,null,null,63,1,"田川郡糸田町",null,null,null,null,185,13,5,"ダム出張所"]
[null,null,null,null,null,null,null,null,null,null,null,64,1,"田川郡川崎町",null,null,null,null,186,13,6,"ダム出張所分室"]
[null,null,null,null,null,null,null,null,null,null,null,65,1,"田川郡大任町",null,null,null,null,187,13,7,"砂防監督官詰所"]
[null,null,null,null,null,null,null,null,null,null,null,66,1,"田川郡赤村",null,null,null,null,69,15,0,"本事務所"]
[null,null,null,null,null,null,null,null,null,null,null,67,1,"田川郡福智町",null,null,null,null,70,15,1,"大分出張所"]
[null,null,null,null,null,null,null,null,null,null,null,68,1,"京都郡苅田町",null,null,null,null,71,15,2,"大野川出張所"]
[null,null,null,null,null,null,null,null,null,null,null,69,1,"京都郡みやこ町",null,null,null,null,72,15,3,"日田国道維持出張所"]
[null,null,null,null,null,null,null,null,null,null,null,70,1,"築上郡吉富町",null,null,null,null,73,15,4,"大分維持出張所"]
[null,null,null,null,null,null,null,null,null,null,null,71,1,"築上郡上毛町",null,null,null,null,74,15,5,"中津維持出張所"]
[null,null,null,null,null,null,null,null,null,null,null,72,1,"築上郡築上町",null,null,null,null,168,15,6,"ダム管理課（ななせダム管理庁舎）"]
[null,null,null,null,null,null,null,null,null,null,null,245,1,"みやま市",null,null,null,null,75,16,0,"本事務所"]
[null,null,null,null,null,null,null,null,null,null,null,247,1,"糸島市",null,null,null,null,76,16,1,"佐伯出張所"]
[null,null,null,null,null,null,null,null,null,null,null,73,2,"佐賀市",null,null,null,null,78,16,3,"竹田維持出張所"]
[null,null,null,null,null,null,null,null,null,null,null,74,2,"唐津市",null,null,null,null,79,17,0,"本事務所"]
[null,null,null,null,null,null,null,null,null,null,null,75,2,"鳥栖市",null,null,null,null,80,17,1,"中津出張所"]
[null,null,null,null,null,null,null,null,null,null,null,76,2,"多久市",null,null,null,null,81,17,2,"耶馬渓ダム管理課"]
[null,null,null,null,null,null,null,null,null,null,null,77,2,"伊万里市",null,null,null,null,83,19,0,"本事務所"]
[null,null,null,null,null,null,null,null,null,null,null,78,2,"武雄市",null,null,null,null,84,19,1,"宮崎出張所"]
[null,null,null,null,null,null,null,null,null,null,null,79,2,"鹿島市",null,null,null,null,85,19,2,"本庄出張所"]
[null,null,null,null,null,null,null,null,null,null,null,80,2,"小城市",null,null,null,null,86,19,3,"都城出張所"]
[null,null,null,null,null,null,null,null,null,null,null,81,2,"嬉野市",null,null,null,null,87,19,4,"高岡出張所"]
[null,null,null,null,null,null,null,null,null,null,null,82,2,"神埼市",null,null,null,null,88,19,5,"高鍋出張所"]
[null,null,null,null,null,null,null,null,null,null,null,83,2,"神埼郡吉野ヶ里町",null,null,null,null,89,19,6,"大淀川砂防出張所"]
[null,null,null,null,null,null,null,null,null,null,null,84,2,"三養基郡基山町",null,null,null,null,90,19,7,"宮崎海岸出張所"]
[null,null,null,null,null,null,null,null,null,null,null,85,2,"三養基郡上峰町",null,null,null,null,91,19,8,"宮崎維持出張所"]
[null,null,null,null,null,null,null,null,null,null,null,86,2,"三養基郡みやき町",null,null,null,null,92,19,9,"都城国道維持出張所"]
[null,null,null,null,null,null,null,null,null,null,null,87,2,"東松浦郡玄海町",null,null,null,null,93,19,10,"日南国道維持出張所"]
[null,null,null,null,null,null,null,null,null,null,null,88,2,"西松浦郡有田町",null,null,null,null,94,20,0,"本事務所"]
[null,null,null,null,null,null,null,null,null,null,null,89,2,"杵島郡大町町",null,null,null,null,95,20,1,"延岡出張所"]
[null,null,null,null,null,null,null,null,null,null,null,90,2,"杵島郡江北町",null,null,null,null,96,20,2,"延岡国道維持出張所"]
[null,null,null,null,null,null,null,null,null,null,null,91,2,"杵島郡白石町",null,null,null,null,97,20,3,"延岡高速道路維持出張所"]
[null,null,null,null,null,null,null,null,null,null,null,92,2,"藤津郡太良町",null,null,null,null,98,21,0,"本事務所"]
[null,null,null,null,null,null,null,null,null,null,null,93,3,"長崎市",null,null,null,null,99,21,1,"高山出張所"]
[null,null,null,null,null,null,null,null,null,null,null,94,3,"佐世保市",null,null,null,null,100,21,2,"鹿屋出張所"]
[null,null,null,null,null,null,null,null,null,null,null,95,3,"島原市",null,null,null,null,101,21,3,"桜島砂防出張所"]
[null,null,null,null,null,null,null,null,null,null,null,96,3,"諫早市",null,null,null,null,102,21,4,"鹿屋国道維持出張所"]
[null,null,null,null,null,null,null,null,null,null,null,97,3,"大村市",null,null,null,null,103,21,5,"垂水国道維持出張所"]
[null,null,null,null,null,null,null,null,null,null,null,98,3,"平戸市",null,null,null,null,105,22,0,"本事務所"]
[null,null,null,null,null,null,null,null,null,null,null,99,3,"松浦市",null,null,null,null,106,22,1,"川内出張所"]
[null,null,null,null,null,null,null,null,null,null,null,100,3,"対馬市",null,null,null,null,107,22,2,"宮之城出張所"]
[null,null,null,null,null,null,null,null,null,null,null,101,3,"壱岐市",null,null,null,null,108,22,3,"菱刈出張所"]
[null,null,null,null,null,null,null,null,null,null,null,102,3,"五島市",null,null,null,null,109,22,4,"京町出張所"]
[null,null,null,null,null,null,null,null,null,null,null,103,3,"西海市",null,null,null,null,110,23,0,"本事務所"]
[null,null,null,null,null,null,null,null,null,null,null,104,3,"雲仙市",null,null,null,null,111,23,1,"鹿児島維持出張所"]
[null,null,null,null,null,null,null,null,null,null,null,105,3,"南島原市",null,null,null,null,112,23,2,"加治木維持出張所"]
[null,null,null,null,null,null,null,null,null,null,null,106,3,"西彼杵郡長与町",null,null,null,null,113,23,3,"阿久根維持出張所"]
[null,null,null,null,null,null,null,null,null,null,null,107,3,"西彼杵郡時津町",null,null,null,null,114,23,4,"指宿維持出張所"]
[null,null,null,null,null,null,null,null,null,null,null,108,3,"東彼杵郡東彼杵町",null,null,null,null,115,24,0,"本事務所"]
[null,null,null,null,null,null,null,null,null,null,null,109,3,"東彼杵郡川棚町",null,null,null,null,116,24,1,"松原ダム管理支所"]
[null,null,null,null,null,null,null,null,null,null,null,110,3,"東彼杵郡波佐見町",null,null,null,null,117,24,2,"下筌ダム管理支所"]
[null,null,null,null,null,null,null,null,null,null,null,111,3,"北松浦郡小値賀町",null,null,null,null,118,25,0,"本事務所"]
[null,null,null,null,null,null,null,null,null,null,null,112,3,"北松浦郡佐々町",null,null,null,null,119,26,0,"本事務所"]
[null,null,null,null,null,null,null,null,null,null,null,113,3,"南松浦郡新上五島町",null,null,null,null,120,27,0,"本事務所"]
[null,null,null,null,null,null,null,null,null,null,null,114,4,"熊本市",null,null,null,null,121,28,0,"本事務所"]
[null,null,null,null,null,null,null,null,null,null,null,115,4,"熊本市中央区",null,null,null,null,122,28,1,"歴史公園課"]
[null,null,null,null,null,null,null,null,null,null,null,116,4,"熊本市東区",null,null,null,null,123,29,0,"本事務所"]
[null,null,null,null,null,null,null,null,null,null,null,117,4,"熊本市西区",null,null,null,null,124,30,0,"本事務所"]
[null,null,null,null,null,null,null,null,null,null,null,118,4,"熊本市南区",null,null,null,null,125,31,0,"本事務所"]
[null,null,null,null,null,null,null,null,null,null,null,119,4,"熊本市北区",null,null,null,null,126,32,0,"本事務所"]
[null,null,null,null,null,null,null,null,null,null,null,120,4,"八代市",null,null,null,null,181,32,1,"空港北町出張所"]
[null,null,null,null,null,null,null,null,null,null,null,121,4,"人吉市",null,null,null,null,128,33,0,"本事務所"]
[null,null,null,null,null,null,null,null,null,null,null,122,4,"荒尾市",null,null,null,null,129,33,1,"福岡空港出張所"]
[null,null,null,null,null,null,null,null,null,null,null,123,4,"水俣市",null,null,null,null,130,33,2,"三池港分室"]
[null,null,null,null,null,null,null,null,null,null,null,124,4,"玉名市",null,null,null,null,131,34,0,"本事務所"]
[null,null,null,null,null,null,null,null,null,null,null,125,4,"山鹿市",null,null,null,null,132,35,0,"本事務所"]
[null,null,null,null,null,null,null,null,null,null,null,126,4,"菊池市",null,null,null,null,133,35,1,"伊万里港分室"]
[null,null,null,null,null,null,null,null,null,null,null,127,4,"宇土市",null,null,null,null,134,36,0,"本事務所"]
[null,null,null,null,null,null,null,null,null,null,null,128,4,"上天草市",null,null,null,null,170,36,2,"佐世保港分室"]
[null,null,null,null,null,null,null,null,null,null,null,129,4,"宇城市",null,null,null,null,171,36,3,"厳原港分室"]
[null,null,null,null,null,null,null,null,null,null,null,130,4,"阿蘇市",null,null,null,null,136,37,0,"本事務所"]
[null,null,null,null,null,null,null,null,null,null,null,131,4,"天草市",null,null,null,null,137,37,1,"八代港分室"]
[null,null,null,null,null,null,null,null,null,null,null,132,4,"合志市",null,null,null,null,138,38,0,"本事務所"]
[null,null,null,null,null,null,null,null,null,null,null,133,4,"下益城郡美里町",null,null,null,null,188,38,1,"大分湾海岸分室"]
[null,null,null,null,null,null,null,null,null,null,null,134,4,"玉名郡玉東町",null,null,null,null,139,39,0,"本事務所"]
[null,null,null,null,null,null,null,null,null,null,null,135,4,"玉名郡南関町",null,null,null,null,140,39,1,"細島港分室"]
[null,null,null,null,null,null,null,null,null,null,null,136,4,"玉名郡長洲町",null,null,null,null,141,39,2,"宮崎空港分室"]
[null,null,null,null,null,null,null,null,null,null,null,137,4,"玉名郡和水町",null,null,null,null,142,40,0,"本事務所"]
[null,null,null,null,null,null,null,null,null,null,null,138,4,"菊池郡大津町",null,null,null,null,145,40,3,"指宿港海岸分室"]
[null,null,null,null,null,null,null,null,null,null,null,139,4,"菊池郡菊陽町",null,null,null,null,172,40,4,"川内港出張所"]
[null,null,null,null,null,null,null,null,null,null,null,140,4,"阿蘇郡南小国町",null,null,null,null,173,40,5,"鹿児島空港出張所"]
[null,null,null,null,null,null,null,null,null,null,null,141,4,"阿蘇郡小国町",null,null,null,null,146,41,0,"本事務所"]
[null,null,null,null,null,null,null,null,null,null,null,142,4,"阿蘇郡産山村",null,null,null,null,147,42,0,"本事務所"]
[null,null,null,null,null,null,null,null,null,null,null,143,4,"阿蘇郡高森町",null,null,null,null,149,43,0,"本事務所"]
[null,null,null,null,null,null,null,null,null,null,null,144,4,"阿蘇郡西原村",null,null,null,null,151,43,2,"港湾空港水理実験センター"]
[null,null,null,null,null,null,null,null,null,null,null,145,4,"阿蘇郡南阿蘇村",null,null,null,null,174,43,3,"船舶修理ドック"]
[null,null,null,null,null,null,null,null,null,null,null,146,4,"上益城郡御船町",null,null,null,null,152,44,0,"本事務所"]
[null,null,null,null,null,null,null,null,null,null,null,147,4,"上益城郡嘉島町",null,null,null,null,175,46,0,"本事務所"]
[null,null,null,null,null,null,null,null,null,null,null,148,4,"上益城郡益城町",null,null,null,null,176,47,0,"本事務所"]
[null,null,null,null,null,null,null,null,null,null,null,149,4,"上益城郡甲佐町",null,null,null,null,178,49,0,"本事務所"]
[null,null,null,null,null,null,null,null,null,null,null,150,4,"上益城郡山都町",null,null,null,null,189,49,1,"名瀬港出張所"]
[null,null,null,null,null,null,null,null,null,null,null,151,4,"八代郡氷川町",null,null,null,null,180,51,0,"本事務所"]
[null,null,null,null,null,null,null,null,null,null,null,152,4,"葦北郡芦北町",null,null,null,null,38,53,7,"嘉瀬川ダム管理支所"]
[null,null,null,null,null,null,null,null,null,null,null,153,4,"葦北郡津奈木町",null,null,null,null,164,53,0,"本事務所"]
[null,null,null,null,null,null,null,null,null,null,null,154,4,"球磨郡錦町",null,null,null,null,190,53,1,"城原川出張所"]
[null,null,null,null,null,null,null,null,null,null,null,155,4,"球磨郡多良木町",null,null,null,null,191,53,2,"嘉瀬川出張所"]
[null,null,null,null,null,null,null,null,null,null,null,156,4,"球磨郡湯前町",null,null,null,null,192,54,0,"本事務所"]
[null,null,null,null,null,null,null,null,null,null,null,157,4,"球磨郡水上村",null,null,null,null,193,55,0,"本事務所"]
[null,null,null,null,null,null,null,null,null,null,null,158,4,"球磨郡相良村"]
[null,null,null,null,null,null,null,null,null,null,null,159,4,"球磨郡五木村"]
[null,null,null,null,null,null,null,null,null,null,null,160,4,"球磨郡山江村",null,null,null,null,"2023.10.13削除"]
[null,null,null,null,null,null,null,null,null,null,null,161,4,"球磨郡球磨村",null,null,null,null,82,18,0,"本事務所"]
[null,null,null,null,null,null,null,null,null,null,null,162,4,"球磨郡あさぎり町",null,null,null,null,48,9,0,"本事務所"]
[null,null,null,null,null,null,null,null,null,null,null,163,4,"天草郡苓北町",null,null,null,null,153,45,0,"本事務所"]
[null,null,null,null,null,null,null,null,null,null,null,164,5,"大分市"]
[null,null,null,null,null,null,null,null,null,null,null,165,5,"別府市",null,null,null,null,"2024.09.11削除"]
[null,null,null,null,null,null,null,null,null,null,null,166,5,"中津市",null,null,null,null,14,3,0,"本事務所"]
[null,null,null,null,null,null,null,null,null,null,null,167,5,"日田市",null,null,null,null,179,50,0,"本事務所"]
[null,null,null,null,null,null,null,null,null,null,null,168,5,"佐伯市",null,null,null,null,11,2,5,"諸富出張所"]
[null,null,null,null,null,null,null,null,null,null,null,169,5,"臼杵市",null,null,null,null,160,2,8,"九州北部豪雨復興出張所"]
[null,null,null,null,null,null,null,null,null,null,null,170,5,"津久見市",null,null,null,null,22,4,1,"有明海沿岸道路出張所"]
[null,null,null,null,null,null,null,null,null,null,null,171,5,"竹田市",null,null,null,null,23,4,2,"瀬高維持出張所"]
[null,null,null,null,null,null,null,null,null,null,null,172,5,"豊後高田市",null,null,null,null,35,6,4,"嘉瀬川出張所"]
[null,null,null,null,null,null,null,null,null,null,null,173,5,"杵築市",null,null,null,null,37,6,6,"佐賀庁舎"]
[null,null,null,null,null,null,null,null,null,null,null,174,5,"宇佐市",null,null,null,null,65,13,1,"本事務所2"]
[null,null,null,null,null,null,null,null,null,null,null,175,5,"豊後大野市",null,null,null,null,67,13,3,"ダム第二出張所"]
[null,null,null,null,null,null,null,null,null,null,null,176,5,"由布市",null,null,null,null,167,13,4,"ダム第一出張所"]
[null,null,null,null,null,null,null,null,null,null,null,177,5,"国東市",null,null,null,null,68,14,0,"本事務所"]
[null,null,null,null,null,null,null,null,null,null,null,178,5,"東国東郡姫島村",null,null,null,null,77,16,2,"佐伯維持出張所"]
[null,null,null,null,null,null,null,null,null,null,null,179,5,"速見郡日出町",null,null,null,null,169,17,3,"ダム管理課"]
[null,null,null,null,null,null,null,null,null,null,null,180,5,"玖珠郡九重町",null,null,null,null,104,21,6,"曽於出張所"]
[null,null,null,null,null,null,null,null,null,null,null,181,5,"玖珠郡玖珠町",null,null,null,null,135,36,1,"沿岸防災対策室"]
[null,null,null,null,null,null,null,null,null,null,null,182,6,"宮崎市",null,null,null,null,143,40,1,"名瀬港出張所"]
[null,null,null,null,null,null,null,null,null,null,null,183,6,"都城市",null,null,null,null,144,40,2,"鹿児島空港分室"]
[null,null,null,null,null,null,null,null,null,null,null,184,6,"延岡市",null,null,null,null,148,42,1,"東部出張所"]
[null,null,null,null,null,null,null,null,null,null,null,185,6,"日南市",null,null,null,null,150,43,1,"下関港湾空港技術調査事務所"]
[null,null,null,null,null,null,null,null,null,null,null,186,6,"小林市"]
[null,null,null,null,null,null,null,null,null,null,null,187,6,"日向市",null,null,null,null,"2024.09.25削除"]
[null,null,null,null,null,null,null,null,null,null,null,188,6,"串間市",null,null,null,null,177,48,1,"砂防課"]
[null,null,null,null,null,null,null,null,null,null,null,189,6,"西都市"]
[null,null,null,null,null,null,null,null,null,null,null,190,6,"えびの市"]
[null,null,null,null,null,null,null,null,null,null,null,191,6,"北諸県郡三股町"]
[null,null,null,null,null,null,null,null,null,null,null,192,6,"西諸県郡高原町"]
[null,null,null,null,null,null,null,null,null,null,null,193,6,"東諸県郡国富町"]
[null,null,null,null,null,null,null,null,null,null,null,194,6,"東諸県郡綾町"]
[null,null,null,null,null,null,null,null,null,null,null,195,6,"児湯郡高鍋町"]
[null,null,null,null,null,null,null,null,null,null,null,196,6,"児湯郡新富町"]
[null,null,null,null,null,null,null,null,null,null,null,197,6,"児湯郡西米良村"]
[null,null,null,null,null,null,null,null,null,null,null,198,6,"児湯郡木城町"]
[null,null,null,null,null,null,null,null,null,null,null,199,6,"児湯郡川南町"]
[null,null,null,null,null,null,null,null,null,null,null,200,6,"児湯郡都農町"]
[null,null,null,null,null,null,null,null,null,null,null,201,6,"東臼杵郡門川町"]
[null,null,null,null,null,null,null,null,null,null,null,202,6,"東臼杵郡諸塚村"]
[null,null,null,null,null,null,null,null,null,null,null,203,6,"東臼杵郡椎葉村"]
[null,null,null,null,null,null,null,null,null,null,null,204,6,"東臼杵郡美郷町"]
[null,null,null,null,null,null,null,null,null,null,null,205,6,"西臼杵郡高千穂町"]
[null,null,null,null,null,null,null,null,null,null,null,206,6,"西臼杵郡日之影町"]
[null,null,null,null,null,null,null,null,null,null,null,207,6,"西臼杵郡五ヶ瀬町"]
[null,null,null,null,null,null,null,null,null,null,null,208,7,"鹿児島市"]
[null,null,null,null,null,null,null,null,null,null,null,209,7,"鹿屋市"]
[null,null,null,null,null,null,null,null,null,null,null,210,7,"枕崎市"]
[null,null,null,null,null,null,null,null,null,null,null,211,7,"阿久根市"]
[null,null,null,null,null,null,null,null,null,null,null,212,7,"出水市"]
[null,null,null,null,null,null,null,null,null,null,null,213,7,"指宿市"]
[null,null,null,null,null,null,null,null,null,null,null,214,7,"西之表市"]
[null,null,null,null,null,null,null,null,null,null,null,215,7,"垂水市"]
[null,null,null,null,null,null,null,null,null,null,null,216,7,"薩摩川内市"]
[null,null,null,null,null,null,null,null,null,null,null,217,7,"日置市"]
[null,null,null,null,null,null,null,null,null,null,null,218,7,"曽於市"]
[null,null,null,null,null,null,null,null,null,null,null,219,7,"霧島市"]
[null,null,null,null,null,null,null,null,null,null,null,220,7,"いちき串木野市"]
[null,null,null,null,null,null,null,null,null,null,null,221,7,"南さつま市"]
[null,null,null,null,null,null,null,null,null,null,null,222,7,"志布志市"]
[null,null,null,null,null,null,null,null,null,null,null,223,7,"奄美市"]
[null,null,null,null,null,null,null,null,null,null,null,224,7,"薩摩郡さつま町"]
[null,null,null,null,null,null,null,null,null,null,null,225,7,"出水郡長島町"]
[null,null,null,null,null,null,null,null,null,null,null,226,7,"姶良郡湧水町"]
[null,null,null,null,null,null,null,null,null,null,null,227,7,"曽於郡大崎町"]
[null,null,null,null,null,null,null,null,null,null,null,228,7,"肝属郡東串良町"]
[null,null,null,null,null,null,null,null,null,null,null,229,7,"肝属郡錦江町"]
[null,null,null,null,null,null,null,null,null,null,null,230,7,"肝属郡南大隅町"]
[null,null,null,null,null,null,null,null,null,null,null,231,7,"肝属郡肝付町"]
[null,null,null,null,null,null,null,null,null,null,null,232,7,"熊毛郡中種子町"]
[null,null,null,null,null,null,null,null,null,null,null,233,7,"熊毛郡南種子町"]
[null,null,null,null,null,null,null,null,null,null,null,234,7,"大島郡大和村"]
[null,null,null,null,null,null,null,null,null,null,null,235,7,"大島郡宇検村"]
[null,null,null,null,null,null,null,null,null,null,null,236,7,"大島郡瀬戸内町"]
[null,null,null,null,null,null,null,null,null,null,null,237,7,"大島郡龍郷町"]
[null,null,null,null,null,null,null,null,null,null,null,238,7,"大島郡喜界町"]
[null,null,null,null,null,null,null,null,null,null,null,239,7,"大島郡徳之島町"]
[null,null,null,null,null,null,null,null,null,null,null,240,7,"大島郡天城町"]
[null,null,null,null,null,null,null,null,null,null,null,241,7,"大島郡伊仙町"]
[null,null,null,null,null,null,null,null,null,null,null,242,7,"大島郡和泊町"]
[null,null,null,null,null,null,null,null,null,null,null,243,7,"大島郡知名町"]
[null,null,null,null,null,null,null,null,null,null,null,244,7,"大島郡与論町"]
[null,null,null,null,null,null,null,null,null,null,null,246,7,"伊佐市"]
[null,null,null,null,null,null,null,null,null,null,null,248,7,"南九州市"]
[null,null,null,null,null,null,null,null,null,null,null,249,7,"姶良市"]
[null,null,null,null,null,null,null,null,null,null,null,250,7,"三島村"]
[null,null,null,null,null,null,null,null,null,null,null,251,7,"十島村"]
[null,null,null,null,null,null,null,null,null,null,null,252,7,"屋久島町"]
[null,null,null,null,null,null,null,null,null,null,null,"名前の管理済20231011"]

{"sheet":"code","index":9,"n_rows":446,"n_cols":20,"rows_kept":446,"cut":false,"hidden":true,"merged":[]}
[null,"(参考)","http://www.yskzt.com/how-we-should-expand-dropdown-list-in-MS-Excel-20150520"]
[null,"機械",null,null,null,null,null,null,null,null,null,"資材"]
[null,"大","大項目","大","中","名前","大","中","小","名前",null,"大","名前","大","中","名前","大","中","小","名前"]
[null,1,"掘削・積込機械",1,1,"ブルドーザ",1,1,1,"6t級未満",null,1,"擁壁",1,1,"コンクリート擁壁",1,1,1,"最大高さ2m未満"]
[null,2,"運搬機械",1,2,"バックホウ",1,1,2,"6t～11t級未満",null,2,"ブロック",2,1,"コンクリートブロック",1,1,2,"最大高さ2m以上"]
[null,3,"クレーン・荷役機械",1,3,"クローラローダー",1,1,3,"11t～21t級未満",null,3,"側溝類",2,2,"張ブロック",2,1,1,"300㎜×400㎜控350㎜"]
[null,4,"基礎工事用機械",1,4,"ホイールローダー",1,1,4,"21t～32t級未満",null,4,"函【管】類",2,3,"連節ブロック",2,2,1,"厚10㎝"]
[null,5,"路盤用・締固め機械",1,5,"スクレーパ",1,1,5,"32t～44t級未満",null,5,"根固めブロック",2,4,"大型ブロック",2,2,2,"厚12㎝"]
[null,6,"せん孔機械及び削岩機械",1,6,"ドザーショベル",1,1,6,"44t級以上",null,6,"杭",2,5,"ブロックマット",2,3,1,"厚20㎝"]
[null,7,"コンクリート機械",1,7,"ロッカーショベル",1,2,1,"バケット容量0.28m3未満（山積み）",null,7,"仮設材",2,6,"ブロックその他",2,3,2,"厚22㎝"]
[null,8,"舗装用機械",1,8,"ローディングショベル",1,2,2,"バケット容量0.28m3～0.6m3未満（山積み）",null,8,"仮設施設",3,1,"U形側溝",2,4,1,"1000㎜×1000㎜"]
[null,9,"道路維持用機械",1,9,"クラムシェル",1,2,3,"バケット容量0.6m3～1.0m3未満（山積み）",null,9,"保安資材",3,2,"函【管】渠形側溝",2,4,2,"1000㎜×2000㎜"]
[null,10,"リサイクル機械",1,10,"泥上掘削機・軟弱地盤用",1,2,4,"バケット容量1.0m3～1.4m3未満（山積み）",null,10,"石灰・薬剤",3,3,"自由勾配側溝",2,5,1,"厚10㎝"]
[null,11,"解体・破砕機械",1,11,"掘削・積込機械その他",1,2,5,"バケット容量1.4m3～2.0m3未満（山積み）",null,11,"道路資材",3,4,"側溝類その他",2,6,1,"(諸元・規格無し)"]
[null,12,"簡易遠隔操縦装置",2,1,"ダンプトラック",1,2,6,"バケット容量2.0m3以上（山積み）",null,12,"土のう",4,1,"ヒューム管",3,1,1,"内幅300㎜以下"]
[null,13,"照明機材",2,2,"トラック",1,2,7,"分解組立型バックホウ",null,13,"土砂・砕石",4,2,"コンクリート台付管",3,1,2,"内幅500㎜以下"]
[null,14,"災害対策用車両",2,3,"クレーン装置付トラック",1,2,8,"遠隔操縦式バックホウ",null,14,"燃料",4,3,"ボックスカルバート",3,1,3,"側溝ふた"]
[null,15,"測量機材",2,4,"不整地運搬車・クローラ型",1,3,1,"バケット容量0.8m3未満（山積み）",null,15,"ドラム缶",4,4,"函【管】類その他",3,2,1,"内幅300㎜以下"]
[null,16,"その他機械",2,6,"セミトレーラ",1,3,2,"バケット容量0.8m3～1.3m3未満（山積み）",null,16,"シート",5,1,"□ブロック",3,2,2,"内幅500㎜以下"]
[null,null,null,2,7,"重機運搬車",1,3,3,"バケット容量1.4m3～1.9m3未満（山積み）",null,17,"油脂・油処理",5,2,"ブロック0.6×0.6×0.6",3,3,1,"内幅300㎜以下"]
[null,null,null,2,8,"リフト車",1,3,4,"バケット容量1.9m3～3.2m3未満（山積み）",null,18,"応急組立橋",5,3,"アクモン",3,3,2,"内幅500㎜以下"]
[null,null,null,2,9,"一輪車・ねこ",1,3,5,"バケット容量3.2m3以上（山積み）",null,19,"救命資材",5,4,"エックスブロック",3,3,3,"側溝ふた"]
[null,null,null,2,10,"台車",1,4,1,"バケット容量0.8m3未満（山積み）",null,20,"その他資材",5,5,"ガンマエルブロック",3,4,1,"(諸元・規格無し)"]
[null,null,null,2,11,"リヤカー",1,4,2,"バケット容量0.8m3～1.3m3未満（山積み）",null,null,null,5,6,"クラックス",4,1,1,"内径1000㎜未満"]
[null,null,null,2,12,"ベルトコンベアー",1,4,3,"バケット容量1.3m3～1.9m3未満（山積み）",null,null,null,5,7,"クリンガー",4,1,2,"内径1000㎜以上"]
[null,null,null,2,13,"コンテナジャッキ",1,4,4,"バケット容量1.9m3～3.2m3未満（山積み）",null,null,null,5,8,"クロスブロック",4,2,1,"内径500㎜未満"]
[null,null,null,2,14,"運搬機械その他",1,4,5,"バケット容量3.2m3～4.6m3未満（山積み）",null,null,null,5,9,"コーケンブロック",4,2,2,"内径500㎜以上"]
[null,null,null,3,1,"クローラークレーン",1,4,6,"バケット容量4.6m3以上（山積み）",null,null,null,5,10,"コンクリート1400×1400×600",4,3,1,"内幅1000㎜未満"]
[null,null,null,3,2,"トラッククレーン",1,5,1,"自走式",null,null,null,5,11,"コンクリート700×700×550",4,3,2,"内幅1000㎜以上"]
[null,null,null,3,3,"ラフテレーンクレーン",1,5,2,"被牽引式",null,null,null,5,12,"三基ブロック",4,4,1,"(諸元・規格無し)"]
[null,null,null,3,4,"カニクレーン",1,6,1,"(諸元・規格無し)",null,null,null,5,13,"三脚ブロック",5,1,1,"0.5t"]
[null,null,null,3,5,"フォークリフト",1,7,1,"(諸元・規格無し)",null,null,null,5,14,"三連ブロック",5,1,2,"1t"]
[null,null,null,3,6,"高所作業車",1,8,1,"(諸元・規格無し)",null,null,null,5,15,"六脚ブロック",5,1,3,"1.5t"]
[null,null,null,3,7,"旋回機重船",1,9,1,"(諸元・規格無し)",null,null,null,5,16,"サンロック",5,1,4,"2t"]
[null,null,null,3,8,"クレーン・荷役機械その他",1,10,1,"(諸元・規格無し)",null,null,null,5,17,"シェークブロック",5,1,5,"2.5t"]
[null,null,null,4,1,"バイブロハンマ",1,11,1,"(諸元・規格無し)",null,null,null,5,18,"ジュゴン",5,1,6,"3t"]
[null,null,null,4,2,"油圧ハンマ",2,1,1,"積載量6t積未満",null,null,null,5,19,"スタビック",5,1,7,"4t"]
[null,null,null,4,3,"油圧式杭圧入引抜機",2,1,2,"積載量6t～12t積未満",null,null,null,5,20,"セッカブロック",5,1,8,"5t"]
[null,null,null,4,4,"ディーゼルパイルハンマ",2,1,3,"積載量12t積以上",null,null,null,5,21,"中空三角ブロック",5,2,1,"0.5t"]
[null,null,null,4,5,"アースオーガー",2,2,1,"積載量1.5t積未満",null,null,null,5,22,"テトラブロック",5,2,2,"1t"]
[null,null,null,4,6,"アースドリル",2,2,2,"積載量1.5t～4t積未満",null,null,null,5,23,"テトラポット",5,2,3,"1.5t"]
[null,null,null,4,7,"オールケーシング掘削",2,2,3,"積載量4t～6t積未満",null,null,null,5,24,"凸型ブロック",5,2,4,"2t"]
[null,null,null,4,8,"地盤改良機",2,2,4,"積載量6t積以上",null,null,null,5,25,"パラクロス",5,2,5,"2.5t"]
[null,null,null,4,9,"グラウトポンプ",2,3,1,"積載量2t～4t積、2t吊未満",null,null,null,5,26,"ビーハイブ",5,2,6,"3t"]
[null,null,null,4,10,"グラウトミキサー",2,3,2,"積載量2t～4t積、2t～2.9t吊未満",null,null,null,5,27,"袋詰め根固め",5,2,7,"4t"]
[null,null,null,4,11,"基礎工事用機械その他",2,3,3,"積載量2t～4t積、2.9t～4t吊未満",null,null,null,5,28,"プレスロック",5,2,8,"5t"]
[null,null,null,5,1,"モータグレーダー",2,3,4,"積載量2t～4t積、4t吊以上",null,null,null,5,29,"ベンチブロック",5,3,1,"0.5t"]
[null,null,null,5,2,"ロードローラー",2,3,5,"積載量4t～6t積、2.9t吊未満",null,null,null,5,30,"ホロースケヤー",5,3,2,"1t"]
[null,null,null,5,3,"タイヤローラー",2,3,6,"積載量4t～6t積、2.9t～4t吊未満",null,null,null,5,31,"メタクロス",5,3,3,"1.5t"]
[null,null,null,5,4,"マカダムローラー",2,3,7,"積載量4t～6t積、4t吊以上",null,null,null,5,32,"リーフロック",5,3,4,"2t"]
[null,null,null,5,5,"振動ローラー",2,3,8,"積載量6t～10t積、2.9t吊",null,null,null,5,33,"根固めブロックその他",5,3,5,"2.5t"]
[null,null,null,5,6,"タンピングローラー",2,3,9,"積載量6t～10t積、2.9t～4t吊未満",null,null,null,6,1,"鋼管杭",5,3,6,"3t"]
[null,null,null,5,7,"振動コンパクタ",2,3,10,"積載量6t～10t積、4t吊以上",null,null,null,6,2,"鋼杭",5,3,7,"4t"]
[null,null,null,5,8,"ランマ・タンパ",2,4,1,"積載量1t積未満",null,null,null,6,3,"木杭",5,3,8,"5t"]
[null,null,null,5,9,"路盤用・締固め機械その他",2,4,2,"積載量1t～3t積未満",null,null,null,6,4,"杭その他",5,4,1,"0.5t"]
[null,null,null,6,1,"ボーリングマシン",2,4,3,"積載量3t～6t積未満",null,null,null,7,1,"H型鋼",5,4,2,"1t"]
[null,null,null,6,2,"ダウンザホールハンマ",2,4,4,"積載量6t～12t積未満",null,null,null,7,2,"塩ビ管",5,4,3,"1.5t"]
[null,null,null,6,3,"コンクリートブレーカ",2,4,5,"積載量12t積以上",null,null,null,7,3,"コルゲート管",5,4,4,"2t"]
[null,null,null,6,4,"大型ブレーカ",2,6,1,"積載量15t未満",null,null,null,7,4,"暗渠排水管【高密度ポリエチレン管】",5,4,5,"2.5t"]
[null,null,null,6,5,"クローラドリル",2,6,2,"積載量15t～25t積未満",null,null,null,7,5,"覆工板",5,4,6,"3t"]
[null,null,null,6,6,"アンカードリル",2,6,3,"積載量25t～32t積未満",null,null,null,7,6,"簡易土留材【簡易矢板】",5,4,7,"4t"]
[null,null,null,6,7,"空圧ドリフタ",2,6,4,"積載量32t積以上",null,null,null,7,7,"普通鋼矢板",5,4,8,"5t"]
[null,null,null,6,8,"油圧ドリフタ",2,7,1,"(諸元・規格無し)",null,null,null,7,8,"軽量鋼矢板",5,5,1,"0.5t"]
[null,null,null,6,9,"シンカ",2,8,1,"(諸元・規格無し)",null,null,null,7,9,"木矢板",5,5,2,"1t"]
[null,null,null,6,10,"ストーパ",2,9,1,"(諸元・規格無し)",null,null,null,7,10,"敷鉄板",5,5,3,"1.5t"]
[null,null,null,6,11,"せん孔機械及び削岩機械その他",2,10,1,"(諸元・規格無し)",null,null,null,7,11,"仮設材その他",5,5,4,"2t"]
[null,null,null,7,1,"コンクリートプラント",2,11,1,"(諸元・規格無し)",null,null,null,8,1,"仮設トイレ",5,5,5,"2.5t"]
[null,null,null,7,2,"コンクリートポンプ車",2,12,1,"(諸元・規格無し)",null,null,null,8,2,"仮設ハウス",5,5,6,"3t"]
[null,null,null,7,3,"コンクリート吹付機",2,13,1,"(諸元・規格無し)",null,null,null,8,3,"仮設施設その他",5,5,7,"4t"]
[null,null,null,7,4,"モルタルガン",2,14,1,"(諸元・規格無し)",null,null,null,9,1,"仮設ガードレール",5,5,8,"5t"]
[null,null,null,7,5,"鋼製バケット",3,1,1,"吊上能力20t吊未満",null,null,null,9,2,"バリケード",5,6,1,"0.5t"]
[null,null,null,7,6,"コンクリート機械その他",3,1,2,"吊上能力20t～40t吊未満",null,null,null,9,3,"防護柵【ガードフェンス】",5,6,2,"1t"]
[null,null,null,8,1,"アスファルトフィニッシャ",3,1,3,"吊上能力40t～80t吊未満",null,null,null,9,4,"落石防止網",5,6,3,"1.5t"]
[null,null,null,8,2,"舗装用機械その他",3,1,4,"吊上能力80t～100t吊未満",null,null,null,9,5,"看板",5,6,4,"2t"]
[null,null,null,9,1,"路面清掃車",3,1,5,"吊上能力100t～300t吊未満",null,null,null,9,6,"コーン",5,6,5,"2.5t"]
[null,null,null,9,2,"側溝清掃車",3,1,6,"吊上能力300t～600t吊未満",null,null,null,9,7,"クッションドラム",5,6,6,"3t"]
[null,null,null,9,3,"排水管清掃車",3,1,7,"吊上能力600t～800t吊未満",null,null,null,9,8,"保安資材その他",5,6,7,"4t"]
[null,null,null,9,4,"散水車",3,1,8,"吊上能力800t吊以上",null,null,null,10,1,"石灰",5,6,8,"5t"]
[null,null,null,9,5,"スイーパー",3,2,1,"吊上能力10t吊未満",null,null,null,10,2,"セメント",5,7,1,"0.5t"]
[null,null,null,9,6,"ガードレール支柱打込車",3,2,2,"吊上能力10t～20t吊未満",null,null,null,10,3,"塩化カルシウム",5,7,2,"1t"]
[null,null,null,9,7,"汚泥吸引車",3,2,3,"吊上能力20t～40t吊未満",null,null,null,10,4,"塩化ナトリウム",5,7,3,"1.5t"]
[null,null,null,9,8,"水循環式排水管清掃車",3,2,4,"吊上能力40t～80t吊未満",null,null,null,10,5,"石灰・薬剤その他",5,7,4,"2t"]
[null,null,null,9,9,"高圧洗浄車",3,2,5,"吊上能力80t～150t吊未満",null,null,null,11,1,"常温合材",5,7,5,"2.5t"]
[null,null,null,9,10,"道路維持用機械その他",3,2,6,"吊上能力150t～300t吊未満",null,null,null,11,2,"道路資材その他",5,7,6,"3t"]
[null,null,null,10,1,"コンクリート破砕機",3,2,7,"吊上能力300t～500t吊未満",null,null,null,12,1,"大型土のう袋【１ｔパック】",5,7,7,"4t"]
[null,null,null,10,2,"自走式破砕機",3,2,8,"吊上能力500t吊以上",null,null,null,12,2,"土のう袋【２５ｋｇ】",5,7,8,"5t"]
[null,null,null,10,3,"自走式土質改良機",3,3,1,"吊上能力10t吊未満",null,null,null,12,3,"土のうその他",5,8,1,"0.5t"]
[null,null,null,10,4,"自走式木材破砕機",3,3,2,"吊上能力10t～20t吊未満",null,null,null,13,1,"土砂",5,8,2,"1t"]
[null,null,null,10,5,"自走式分別機",3,3,3,"吊上能力20t～40t吊未満",null,null,null,13,2,"砂利",5,8,3,"1.5t"]
[null,null,null,10,6,"自走式２軸破砕機",3,3,4,"吊上能力40t～80t吊未満",null,null,null,13,3,"砂",5,8,4,"2t"]
[null,null,null,10,7,"削岩機",3,3,5,"吊上能力80t吊以上",null,null,null,13,4,"砕石",5,8,5,"2.5t"]
[null,null,null,10,8,"リサイクル機械その他",3,4,1,"(諸元・規格無し)",null,null,null,13,5,"栗石",5,8,6,"3t"]
[null,null,null,11,1,"木造家屋解体機",3,5,1,"2t級未満",null,null,null,13,6,"岩砕",5,8,7,"4t"]
[null,null,null,11,2,"コンクリート構造物解体機",3,5,2,"2t級以上",null,null,null,13,7,"改良土【盛土・埋戻材】",5,8,8,"5t"]
[null,null,null,11,3,"鉄筋・鉄骨構造物解体機",3,6,1,"10m未満",null,null,null,13,8,"土砂・砕石その他",5,9,1,"0.5t"]
[null,null,null,11,4,"スクラップ解体・処理機",3,6,2,"10m以上",null,null,null,14,1,"軽油",5,9,2,"1t"]
[null,null,null,11,5,"コンクリートカッター",3,7,1,"(諸元・規格無し)",null,null,null,14,2,"ガソリン",5,9,3,"1.5t"]
[null,null,null,11,6,"ワイヤソー",3,8,1,"(諸元・規格無し)",null,null,null,14,3,"灯油",5,9,4,"2t"]
[null,null,null,11,7,"エンジンカッター",4,1,1,"30KW未満",null,null,null,14,4,"Ａ重油",5,9,5,"2.5t"]
[null,null,null,11,8,"高速切断機",4,1,2,"30KW～60KW未満",null,null,null,14,5,"燃料その他",5,9,6,"3t"]
[null,null,null,11,9,"チェーンソウ",4,1,3,"60KW～100KW未満",null,null,null,15,1,"ドラム200L",5,9,7,"4t"]
[null,null,null,11,10,"解体・破砕機械その他",4,1,4,"100KW～200KW未満",null,null,null,15,2,"中小型缶",5,9,8,"5t"]
[null,null,null,12,1,"バックホウ用",4,1,5,"200KW以上",null,null,null,15,3,"燃料携行缶",5,10,1,"0.5t"]
[null,null,null,12,2,"ブルドーザ用",4,2,1,"ラム質量2t未満",null,null,null,15,4,"ドラム缶その他",5,10,2,"1t"]
[null,null,null,12,3,"クローダンプ用",4,2,2,"ラム質量2t～6t未満",null,null,null,16,1,"ブルーシート",5,10,3,"1.5t"]
[null,null,null,12,4,"簡易遠隔操縦装置その他",4,2,3,"ラム質量6t～10t未満",null,null,null,16,2,"養生マット",5,10,4,"2t"]
[null,null,null,13,1,"投光器",4,2,4,"ラム質量10t以上",null,null,null,16,3,"メッシュシート",5,10,5,"2.5t"]
[null,null,null,13,2,"回転灯",4,3,1,"100KW未満",null,null,null,16,4,"建築用養生シート",5,10,6,"3t"]
[null,null,null,13,3,"照明灯",4,3,2,"100KW～200KW未満",null,null,null,16,5,"シートその他",5,10,7,"4t"]
[null,null,null,13,4,"保安灯",4,3,3,"200KW以上",null,null,null,17,1,"オイルフェンス",5,10,8,"5t"]
[null,null,null,13,5,"照明車",4,4,1,"ラム質量6t未満",null,null,null,17,2,"吸着フェンス",5,11,1,"0.5t"]
[null,null,null,13,6,"照明機材その他",4,4,2,"ラム質量6t～10t未満",null,null,null,17,3,"吸着ﾏｯﾄ",5,11,2,"1t"]
[null,null,null,14,1,"対策本部車",4,4,3,"ラム質量10t以上",null,null,null,17,4,"オイル吸着剤",5,11,3,"1.5t"]
[null,null,null,14,2,"情報収集車",4,5,1,"最大掘削口径 250㎜未満",null,null,null,17,5,"汚濁防止膜",5,11,4,"2t"]
[null,null,null,14,3,"待機支援車",4,5,2,"最大掘削口径 250㎜～500㎜未満",null,null,null,17,6,"油脂・油処理その他",5,11,5,"2.5t"]
[null,null,null,14,4,"排水ポンプ車",4,5,3,"最大掘削口径 500㎜～1,000㎜未満",null,null,null,18,1,"トラスト橋",5,11,6,"3t"]
[null,null,null,14,5,"橋梁点検車",4,5,4,"最大掘削口径1,000㎜以上",null,null,null,18,2,"鈑桁橋",5,11,7,"4t"]
[null,null,null,14,6,"作業車",4,6,1,"最大口径 1,500㎜未満",null,null,null,18,3,"応急組立橋用送出装置",5,11,8,"5t"]
[null,null,null,14,7,"マイクロバス",4,6,2,"最大口径 1,500㎜～2,000㎜未満",null,null,null,18,4,"応急組立橋その他",5,12,1,"0.5t"]
[null,null,null,14,8,"工事標識車",4,6,3,"最大口径 2,000㎜～3,000㎜未満",null,null,null,19,1,"救命胴衣",5,12,2,"1t"]
[null,null,null,14,9,"給水車",4,6,4,"最大口径 3,000㎜以上",null,null,null,19,2,"救命浮環",5,12,3,"1.5t"]
[null,null,null,14,10,"連絡車",4,7,1,"掘削口径 1,500㎜未満",null,null,null,19,3,"救命資材その他",5,12,4,"2t"]
[null,null,null,14,11,"ジープ",4,7,2,"掘削口径 1,500㎜～2,000㎜未満",null,null,null,20,1,"ロープ",5,12,5,"2.5t"]
[null,null,null,14,12,"補助カメラ車",4,7,3,"掘削口径 2,000㎜～3,000㎜未満",null,null,null,20,2,"鉄線",5,12,6,"3t"]
[null,null,null,14,13,"災害対策用車両その他",4,7,4,"掘削口径 3,000㎜以上",null,null,null,20,3,"木製型枠",5,12,7,"4t"]
[null,null,null,15,1,"UAV_ドローン等",4,8,1,"(諸元・規格無し)",null,null,null,20,4,"鋼製型枠",5,12,8,"5t"]
[null,null,null,15,2,"トータルステーション",4,9,1,"(諸元・規格無し)",null,null,null,20,5,"布製型枠",5,13,1,"0.5t"]
[null,null,null,15,3,"レーザースキャナ",4,10,1,"(諸元・規格無し)",null,null,null,20,6,"ふとん籠",5,13,2,"1t"]
[null,null,null,16,1,"空気圧縮機",4,11,1,"(諸元・規格無し)",null,null,null,20,7,"じゃかご",5,13,3,"1.5t"]
[null,null,null,16,2,"空気入れ",5,1,1,"ブレード幅3.1m未満",null,null,null,20,8,"かごマット",5,13,4,"2t"]
[null,null,null,16,3,"発動発電機",5,1,2,"ブレード幅3.1m～4m未満",null,null,null,20,9,"その他資材その他",5,13,5,"2.5t"]
[null,null,null,16,4,"工事用水中ポンプ",5,1,3,"ブレード幅4m以上",null,null,null,null,null,null,5,13,6,"3t"]
[null,null,null,16,5,"工事用高圧洗浄機",5,2,1,"質量10t未満",null,null,null,null,null,null,5,13,7,"4t"]
[null,null,null,16,6,"土のう造成機",5,2,2,"質量10t～12t未満",null,null,null,null,null,null,5,13,8,"5t"]
[null,null,null,16,7,"無人ヘリコプター",5,2,3,"質量12t以上",null,null,null,null,null,null,5,14,1,"0.5t"]
[null,null,null,16,8,"船",5,3,1,"質量8t未満",null,null,null,null,null,null,5,14,2,"1t"]
[null,null,null,16,9,"草刈機",5,3,2,"質量8t～20t未満",null,null,null,null,null,null,5,14,3,"1.5t"]
[null,null,null,16,10,"ジェットヒータ",5,3,3,"質量20t以上",null,null,null,null,null,null,5,14,4,"2t"]
[null,null,null,16,11,"無線機",5,4,1,"(諸元・規格無し)",null,null,null,null,null,null,5,14,5,"2.5t"]
[null,null,null,16,12,"電気溶接機",5,5,1,"質量6t未満",null,null,null,null,null,null,5,14,6,"3t"]
[null,null,null,16,13,"工事用器具",5,5,2,"質量6t～10t未満",null,null,null,null,null,null,5,14,7,"4t"]
[null,null,null,16,14,"その他機械その他",5,5,3,"質量10t以上",null,null,null,null,null,null,5,14,8,"5t"]
[null,null,null,null,null,null,5,5,4,"ハンドガイド式",null,null,null,null,null,null,5,15,1,"0.5t"]
[null,null,null,null,null,null,5,6,1,"質量19t未満",null,null,null,null,null,null,5,15,2,"1t"]
[null,null,null,null,null,null,5,6,2,"質量19t～30t未満",null,null,null,null,null,null,5,15,3,"1.5t"]
[null,null,null,null,null,null,5,6,3,"質量30t以上",null,null,null,null,null,null,5,15,4,"2t"]
[null,null,null,null,null,null,5,7,1,"(諸元・規格無し)",null,null,null,null,null,null,5,15,5,"2.5t"]
[null,null,null,null,null,null,5,8,1,"(諸元・規格無し)",null,null,null,null,null,null,5,15,6,"3t"]
[null,null,null,null,null,null,5,9,1,"(諸元・規格無し)",null,null,null,null,null,null,5,15,7,"4t"]
[null,null,null,null,null,null,6,1,1,"油圧式",null,null,null,null,null,null,5,15,8,"5t"]
[null,null,null,null,null,null,6,1,2,"大口径（300mm以上）",null,null,null,null,null,null,5,16,1,"0.5t"]
[null,null,null,null,null,null,6,1,3,"小口径（300mm未満）",null,null,null,null,null,null,5,16,2,"1t"]
[null,null,null,null,null,null,6,2,1,"掘削孔径 86㎜未満",null,null,null,null,null,null,5,16,3,"1.5t"]
[null,null,null,null,null,null,6,2,2,"掘削孔径 86～302㎜未満",null,null,null,null,null,null,5,16,4,"2t"]
[null,null,null,null,null,null,6,2,3,"掘削孔径302～508㎜未満",null,null,null,null,null,null,5,16,5,"2.5t"]
[null,null,null,null,null,null,6,2,4,"掘削孔径508～762㎜未満",null,null,null,null,null,null,5,16,6,"3t"]
[null,null,null,null,null,null,6,2,5,"掘削孔径762㎜以上",null,null,null,null,null,null,5,16,7,"4t"]
[null,null,null,null,null,null,6,3,1,"(諸元・規格無し)",null,null,null,null,null,null,5,16,8,"5t"]
[null,null,null,null,null,null,6,4,1,"ブレーカ 600㎏未満",null,null,null,null,null,null,5,17,1,"0.5t"]
[null,null,null,null,null,null,6,4,2,"ブレーカ 600㎏～1300㎏級未満",null,null,null,null,null,null,5,17,2,"1t"]
[null,null,null,null,null,null,6,4,3,"ブレーカ 1300㎏級以上",null,null,null,null,null,null,5,17,3,"1.5t"]
[null,null,null,null,null,null,6,5,1,"非搭乗式",null,null,null,null,null,null,5,17,4,"2t"]
[null,null,null,null,null,null,6,5,2,"搭乗式",null,null,null,null,null,null,5,17,5,"2.5t"]
[null,null,null,null,null,null,6,6,1,"(諸元・規格無し)",null,null,null,null,null,null,5,17,6,"3t"]
[null,null,null,null,null,null,6,7,1,"(諸元・規格無し)",null,null,null,null,null,null,5,17,7,"4t"]
[null,null,null,null,null,null,6,8,1,"(諸元・規格無し)",null,null,null,null,null,null,5,17,8,"5t"]
[null,null,null,null,null,null,6,9,1,"(諸元・規格無し)",null,null,null,null,null,null,5,18,1,"0.5t"]
[null,null,null,null,null,null,6,10,1,"(諸元・規格無し)",null,null,null,null,null,null,5,18,2,"1t"]
[null,null,null,null,null,null,6,11,1,"(諸元・規格無し)",null,null,null,null,null,null,5,18,3,"1.5t"]
[null,null,null,null,null,null,7,1,1,"ミキサー容量1m3未満",null,null,null,null,null,null,5,18,4,"2t"]
[null,null,null,null,null,null,7,1,2,"ミキサー容量1m3～2m3未満",null,null,null,null,null,null,5,18,5,"2.5t"]
[null,null,null,null,null,null,7,1,3,"ミキサー容量2m3以上",null,null,null,null,null,null,5,18,6,"3t"]
[null,null,null,null,null,null,7,2,1,"圧送能力100m3/h未満",null,null,null,null,null,null,5,18,7,"4t"]
[null,null,null,null,null,null,7,2,2,"圧送能力100m3/h以上",null,null,null,null,null,null,5,18,8,"5t"]
[null,null,null,null,null,null,7,3,1,"(諸元・規格無し)",null,null,null,null,null,null,5,19,1,"0.5t"]
[null,null,null,null,null,null,7,4,1,"(諸元・規格無し)",null,null,null,null,null,null,5,19,2,"1t"]
[null,null,null,null,null,null,7,5,1,"(諸元・規格無し)",null,null,null,null,null,null,5,19,3,"1.5t"]
[null,null,null,null,null,null,7,6,1,"(諸元・規格無し)",null,null,null,null,null,null,5,19,4,"2t"]
[null,null,null,null,null,null,8,1,1,"舗装幅6m未満",null,null,null,null,null,null,5,19,5,"2.5t"]
[null,null,null,null,null,null,8,1,2,"舗装幅6m以上",null,null,null,null,null,null,5,19,6,"3t"]
[null,null,null,null,null,null,8,2,1,"(諸元・規格無し)",null,null,null,null,null,null,5,19,7,"4t"]
[null,null,null,null,null,null,9,1,1,"ブラシ式",null,null,null,null,null,null,5,19,8,"5t"]
[null,null,null,null,null,null,9,1,2,"真空式",null,null,null,null,null,null,5,20,1,"0.5t"]
[null,null,null,null,null,null,9,2,1,"ホッパ容量5m3未満",null,null,null,null,null,null,5,20,2,"1t"]
[null,null,null,null,null,null,9,2,2,"ホッパ容量5m3以上",null,null,null,null,null,null,5,20,3,"1.5t"]
[null,null,null,null,null,null,9,3,1,"(諸元・規格無し)",null,null,null,null,null,null,5,20,4,"2t"]
[null,null,null,null,null,null,9,4,1,"タンク容量3,000L未満",null,null,null,null,null,null,5,20,5,"2.5t"]
[null,null,null,null,null,null,9,4,2,"タンク容量3,000L～6,000L未満",null,null,null,null,null,null,5,20,6,"3t"]
[null,null,null,null,null,null,9,4,3,"タンク容量6,000L～8,000L未満",null,null,null,null,null,null,5,20,7,"4t"]
[null,null,null,null,null,null,9,4,4,"タンク容量8,000L以上",null,null,null,null,null,null,5,20,8,"5t"]
[null,null,null,null,null,null,9,5,1,"(諸元・規格無し)",null,null,null,null,null,null,5,21,1,"0.5t"]
[null,null,null,null,null,null,9,6,1,"(諸元・規格無し)",null,null,null,null,null,null,5,21,2,"1t"]
[null,null,null,null,null,null,9,7,1,"(諸元・規格無し)",null,null,null,null,null,null,5,21,3,"1.5t"]
[null,null,null,null,null,null,9,8,1,"(諸元・規格無し)",null,null,null,null,null,null,5,21,4,"2t"]
[null,null,null,null,null,null,9,9,1,"(諸元・規格無し)",null,null,null,null,null,null,5,21,5,"2.5t"]
[null,null,null,null,null,null,9,10,1,"(諸元・規格無し)",null,null,null,null,null,null,5,21,6,"3t"]
[null,null,null,null,null,null,10,1,1,"(諸元・規格無し)",null,null,null,null,null,null,5,21,7,"4t"]
[null,null,null,null,null,null,10,2,1,"(諸元・規格無し)",null,null,null,null,null,null,5,21,8,"5t"]
[null,null,null,null,null,null,10,3,1,"(諸元・規格無し)",null,null,null,null,null,null,5,22,1,"0.5t"]
[null,null,null,null,null,null,10,4,1,"(諸元・規格無し)",null,null,null,null,null,null,5,22,2,"1t"]
[null,null,null,null,null,null,10,5,1,"(諸元・規格無し)",null,null,null,null,null,null,5,22,3,"1.5t"]
[null,null,null,null,null,null,10,6,1,"(諸元・規格無し)",null,null,null,null,null,null,5,22,4,"2t"]
[null,null,null,null,null,null,10,7,1,"割石機",null,null,null,null,null,null,5,22,5,"2.5t"]
[null,null,null,null,null,null,10,8,1,"(諸元・規格無し)",null,null,null,null,null,null,5,22,6,"3t"]
[null,null,null,null,null,null,11,1,1,"(諸元・規格無し)",null,null,null,null,null,null,5,22,7,"4t"]
[null,null,null,null,null,null,11,2,1,"(諸元・規格無し)",null,null,null,null,null,null,5,22,8,"5t"]
[null,null,null,null,null,null,11,3,1,"(諸元・規格無し)",null,null,null,null,null,null,5,23,1,"0.5t"]
[null,null,null,null,null,null,11,4,1,"(諸元・規格無し)",null,null,null,null,null,null,5,23,2,"1t"]
[null,null,null,null,null,null,11,5,1,"(諸元・規格無し)",null,null,null,null,null,null,5,23,3,"1.5t"]
[null,null,null,null,null,null,11,6,1,"(諸元・規格無し)",null,null,null,null,null,null,5,23,4,"2t"]
[null,null,null,null,null,null,11,7,1,"(諸元・規格無し)",null,null,null,null,null,null,5,23,5,"2.5t"]
[null,null,null,null,null,null,11,8,1,"(諸元・規格無し)",null,null,null,null,null,null,5,23,6,"3t"]
[null,null,null,null,null,null,11,9,1,"(諸元・規格無し)",null,null,null,null,null,null,5,23,7,"4t"]
[null,null,null,null,null,null,11,10,1,"(諸元・規格無し)",null,null,null,null,null,null,5,23,8,"5t"]
[null,null,null,null,null,null,12,1,1,"(諸元・規格無し)",null,null,null,null,null,null,5,24,1,"0.5t"]
[null,null,null,null,null,null,12,2,1,"(諸元・規格無し)",null,null,null,null,null,null,5,24,2,"1t"]
[null,null,null,null,null,null,12,3,1,"(諸元・規格無し)",null,null,null,null,null,null,5,24,3,"1.5t"]
[null,null,null,null,null,null,12,4,1,"(諸元・規格無し)",null,null,null,null,null,null,5,24,4,"2t"]
[null,null,null,null,null,null,13,1,1,"(諸元・規格無し)",null,null,null,null,null,null,5,24,5,"2.5t"]
[null,null,null,null,null,null,13,2,1,"(諸元・規格無し)",null,null,null,null,null,null,5,24,6,"3t"]
[null,null,null,null,null,null,13,3,1,"(諸元・規格無し)",null,null,null,null,null,null,5,24,7,"4t"]
[null,null,null,null,null,null,13,4,1,"(諸元・規格無し)",null,null,null,null,null,null,5,24,8,"5t"]
[null,null,null,null,null,null,13,5,1,"(諸元・規格無し)",null,null,null,null,null,null,5,25,1,"0.5t"]
[null,null,null,null,null,null,13,6,1,"(諸元・規格無し)",null,null,null,null,null,null,5,25,2,"1t"]
[null,null,null,null,null,null,14,1,1,"(諸元・規格無し)",null,null,null,null,null,null,5,25,3,"1.5t"]
[null,null,null,null,null,null,14,2,1,"(諸元・規格無し)",null,null,null,null,null,null,5,25,4,"2t"]
[null,null,null,null,null,null,14,3,1,"(諸元・規格無し)",null,null,null,null,null,null,5,25,5,"2.5t"]
[null,null,null,null,null,null,14,4,1,"(諸元・規格無し)",null,null,null,null,null,null,5,25,6,"3t"]
[null,null,null,null,null,null,14,5,1,"歩廊式",null,null,null,null,null,null,5,25,7,"4t"]
[null,null,null,null,null,null,14,5,2,"油圧屈伸式",null,null,null,null,null,null,5,25,8,"5t"]
[null,null,null,null,null,null,14,6,1,"(諸元・規格無し)",null,null,null,null,null,null,5,26,1,"0.5t"]
[null,null,null,null,null,null,14,7,1,"(諸元・規格無し)",null,null,null,null,null,null,5,26,2,"1t"]
[null,null,null,null,null,null,14,8,1,"(諸元・規格無し)",null,null,null,null,null,null,5,26,3,"1.5t"]
[null,null,null,null,null,null,14,9,1,"(諸元・規格無し)",null,null,null,null,null,null,5,26,4,"2t"]
[null,null,null,null,null,null,14,10,1,"(諸元・規格無し)",null,null,null,null,null,null,5,26,5,"2.5t"]
[null,null,null,null,null,null,14,11,1,"(諸元・規格無し)",null,null,null,null,null,null,5,26,6,"3t"]
[null,null,null,null,null,null,14,12,1,"(諸元・規格無し)",null,null,null,null,null,null,5,26,7,"4t"]
[null,null,null,null,null,null,14,13,1,"(諸元・規格無し)",null,null,null,null,null,null,5,26,8,"5t"]
[null,null,null,null,null,null,15,1,1,"(諸元・規格無し)",null,null,null,null,null,null,5,27,1,"0.5t"]
[null,null,null,null,null,null,15,2,1,"(諸元・規格無し)",null,null,null,null,null,null,5,27,2,"1t"]
[null,null,null,null,null,null,15,3,1,"無人航空機搭載型",null,null,null,null,null,null,5,27,3,"1.5t"]
[null,null,null,null,null,null,15,3,2,"地上型",null,null,null,null,null,null,5,27,4,"2t"]
[null,null,null,null,null,null,16,1,1,"吐出量20m3/min未満",null,null,null,null,null,null,5,27,5,"2.5t"]
[null,null,null,null,null,null,16,1,2,"吐出量20m3/min以上",null,null,null,null,null,null,5,27,6,"3t"]
[null,null,null,null,null,null,16,2,1,"(諸元・規格無し)",null,null,null,null,null,null,5,27,7,"4t"]
[null,null,null,null,null,null,16,3,1,"定格容量100KVA未満",null,null,null,null,null,null,5,27,8,"5t"]
[null,null,null,null,null,null,16,3,2,"定格容量100KVA～300KVA未満",null,null,null,null,null,null,5,28,1,"0.5t"]
[null,null,null,null,null,null,16,3,3,"定格容量300KVA以上",null,null,null,null,null,null,5,28,2,"1t"]
[null,null,null,null,null,null,16,4,1,"口径100㎜未満",null,null,null,null,null,null,5,28,3,"1.5t"]
[null,null,null,null,null,null,16,4,2,"口径100㎜～200㎜未満",null,null,null,null,null,null,5,28,4,"2t"]
[null,null,null,null,null,null,16,4,3,"口径200㎜以上",null,null,null,null,null,null,5,28,5,"2.5t"]
[null,null,null,null,null,null,16,5,1,"(諸元・規格無し)",null,null,null,null,null,null,5,28,6,"3t"]
[null,null,null,null,null,null,16,6,1,"(諸元・規格無し)",null,null,null,null,null,null,5,28,7,"4t"]
[null,null,null,null,null,null,16,7,1,"(諸元・規格無し)",null,null,null,null,null,null,5,28,8,"5t"]
[null,null,null,null,null,null,16,8,1,"(諸元・規格無し)",null,null,null,null,null,null,5,29,1,"0.5t"]
[null,null,null,null,null,null,16,9,1,"(諸元・規格無し)",null,null,null,null,null,null,5,29,2,"1t"]
[null,null,null,null,null,null,16,10,1,"(諸元・規格無し)",null,null,null,null,null,null,5,29,3,"1.5t"]
[null,null,null,null,null,null,16,11,1,"(諸元・規格無し)",null,null,null,null,null,null,5,29,4,"2t"]
[null,null,null,null,null,null,16,12,1,"(諸元・規格無し)",null,null,null,null,null,null,5,29,5,"2.5t"]
[null,null,null,null,null,null,16,13,1,"スコップ",null,null,null,null,null,null,5,29,6,"3t"]
[null,null,null,null,null,null,16,13,2,"カケヤ",null,null,null,null,null,null,5,29,7,"4t"]
[null,null,null,null,null,null,16,13,3,"ツルハシ",null,null,null,null,null,null,5,29,8,"5t"]
[null,null,null,null,null,null,16,13,4,"ガンヅメ",null,null,null,null,null,null,5,30,1,"0.5t"]
[null,null,null,null,null,null,16,13,5,"クワ",null,null,null,null,null,null,5,30,2,"1t"]
[null,null,null,null,null,null,16,13,6,"カキ板・ジョレン",null,null,null,null,null,null,5,30,3,"1.5t"]
[null,null,null,null,null,null,16,13,7,"ノコギリ",null,null,null,null,null,null,5,30,4,"2t"]
[null,null,null,null,null,null,16,13,8,"ナタ",null,null,null,null,null,null,5,30,5,"2.5t"]
[null,null,null,null,null,null,16,13,9,"オノ",null,null,null,null,null,null,5,30,6,"3t"]
[null,null,null,null,null,null,16,13,10,"ハンマー",null,null,null,null,null,null,5,30,7,"4t"]
[null,null,null,null,null,null,16,13,11,"ペンチ",null,null,null,null,null,null,5,30,8,"5t"]
[null,null,null,null,null,null,16,13,12,"カマ",null,null,null,null,null,null,5,31,1,"0.5t"]
[null,null,null,null,null,null,16,13,13,"ザル",null,null,null,null,null,null,5,31,2,"1t"]
[null,null,null,null,null,null,16,13,14,"テミ",null,null,null,null,null,null,5,31,3,"1.5t"]
[null,null,null,null,null,null,16,13,15,"タコ",null,null,null,null,null,null,5,31,4,"2t"]
[null,null,null,null,null,null,16,13,16,"トビ口",null,null,null,null,null,null,5,31,5,"2.5t"]
[null,null,null,null,null,null,16,13,17,"クリッパ",null,null,null,null,null,null,5,31,6,"3t"]
[null,null,null,null,null,null,16,13,18,"シノ",null,null,null,null,null,null,5,31,7,"4t"]
[null,null,null,null,null,null,16,13,19,"ピック",null,null,null,null,null,null,5,31,8,"5t"]
[null,null,null,null,null,null,16,13,20,"バール",null,null,null,null,null,null,5,32,1,"0.5t"]
[null,null,null,null,null,null,16,13,21,"ポール",null,null,null,null,null,null,5,32,2,"1t"]
[null,null,null,null,null,null,16,13,22,"ウィンチ",null,null,null,null,null,null,5,32,3,"1.5t"]
[null,null,null,null,null,null,16,13,23,"チェンブロック",null,null,null,null,null,null,5,32,4,"2t"]
[null,null,null,null,null,null,16,13,24,"バッチャースケール",null,null,null,null,null,null,5,32,5,"2.5t"]
[null,null,null,null,null,null,16,13,25,"リボンロッド",null,null,null,null,null,null,5,32,6,"3t"]
[null,null,null,null,null,null,16,13,26,"巻尺",null,null,null,null,null,null,5,32,7,"4t"]
[null,null,null,null,null,null,16,13,27,"はしご",null,null,null,null,null,null,5,32,8,"5t"]
[null,null,null,null,null,null,16,13,28,"コードリール",null,null,null,null,null,null,5,33,1,"(諸元・規格無し)"]
[null,null,null,null,null,null,16,13,29,"工事旗",null,null,null,null,null,null,6,1,1,"6m未満"]
[null,null,null,null,null,null,16,13,30,"LED誘導棒",null,null,null,null,null,null,6,1,2,"6m以上"]
[null,null,null,null,null,null,16,14,1,"(諸元・規格無し)",null,null,null,null,null,null,6,2,1,"6m未満"]
[null,null,null,null,null,null,null,null,null,null,null,null,null,null,null,null,6,2,2,"6m以上"]
[null,null,null,null,null,null,null,null,null,null,null,null,null,null,null,null,6,3,1,"6m未満"]
[null,null,null,null,null,null,null,null,null,null,null,null,null,null,null,null,6,3,2,"6m以上"]
[null,null,null,null,null,null,null,null,null,null,null,null,null,null,null,null,6,4,1,"(諸元・規格無し)"]
[null,null,null,null,null,null,null,null,null,null,null,null,null,null,null,null,7,1,1,"H-300　L=6m未満"]
[null,null,null,null,null,null,null,null,null,null,null,null,null,null,null,null,7,1,2,"H-300　L=6m以上"]
[null,null,null,null,null,null,null,null,null,null,null,null,null,null,null,null,7,1,3,"H-400　L=6m未満"]
[null,null,null,null,null,null,null,null,null,null,null,null,null,null,null,null,7,1,4,"H-400　L=6m以上"]
[null,null,null,null,null,null,null,null,null,null,null,null,null,null,null,null,7,2,1,"呼び径　200㎜未満"]
[null,null,null,null,null,null,null,null,null,null,null,null,null,null,null,null,7,2,2,"呼び径　200㎜以上"]
[null,null,null,null,null,null,null,null,null,null,null,null,null,null,null,null,7,3,1,"直径　1000㎜未満"]
[null,null,null,null,null,null,null,null,null,null,null,null,null,null,null,null,7,3,2,"直径　1000㎜以上"]
[null,null,null,null,null,null,null,null,null,null,null,null,null,null,null,null,7,4,1,"直径　300㎜未満"]
[null,null,null,null,null,null,null,null,null,null,null,null,null,null,null,null,7,4,2,"直径　300㎜以上"]
[null,null,null,null,null,null,null,null,null,null,null,null,null,null,null,null,7,5,1,"1000×2000×200"]
[null,null,null,null,null,null,null,null,null,null,null,null,null,null,null,null,7,5,2,"1000×3000×200"]
[null,null,null,null,null,null,null,null,null,null,null,null,null,null,null,null,7,6,1,"幅　3m未満"]
[null,null,null,null,null,null,null,null,null,null,null,null,null,null,null,null,7,6,2,"幅　3m以上"]
[null,null,null,null,null,null,null,null,null,null,null,null,null,null,null,null,7,7,1,"Ⅱ型　10m未満"]
[null,null,null,null,null,null,null,null,null,null,null,null,null,null,null,null,7,7,2,"Ⅱ型　10m以上"]
[null,null,null,null,null,null,null,null,null,null,null,null,null,null,null,null,7,7,3,"Ⅲ型　10m未満"]
[null,null,null,null,null,null,null,null,null,null,null,null,null,null,null,null,7,7,4,"Ⅲ型　10m以上"]
[null,null,null,null,null,null,null,null,null,null,null,null,null,null,null,null,7,7,5,"Ⅳ型　10m未満"]
[null,null,null,null,null,null,null,null,null,null,null,null,null,null,null,null,7,7,6,"Ⅳ型　10m以上"]
[null,null,null,null,null,null,null,null,null,null,null,null,null,null,null,null,7,8,1,"5m未満"]
[null,null,null,null,null,null,null,null,null,null,null,null,null,null,null,null,7,8,2,"5m以上"]
[null,null,null,null,null,null,null,null,null,null,null,null,null,null,null,null,7,9,1,"5m未満"]
[null,null,null,null,null,null,null,null,null,null,null,null,null,null,null,null,7,9,2,"5m以上"]
[null,null,null,null,null,null,null,null,null,null,null,null,null,null,null,null,7,10,1,"900×1800"]
[null,null,null,null,null,null,null,null,null,null,null,null,null,null,null,null,7,10,2,"1200×2400"]
[null,null,null,null,null,null,null,null,null,null,null,null,null,null,null,null,7,10,3,"1500×3000"]
[null,null,null,null,null,null,null,null,null,null,null,null,null,null,null,null,7,10,4,"1500×6000"]
[null,null,null,null,null,null,null,null,null,null,null,null,null,null,null,null,7,10,5,"900×1800"]
[null,null,null,null,null,null,null,null,null,null,null,null,null,null,null,null,7,11,1,"(諸元・規格無し)"]
[null,null,null,null,null,null,null,null,null,null,null,null,null,null,null,null,8,1,1,"汲取式"]
[null,null,null,null,null,null,null,null,null,null,null,null,null,null,null,null,8,1,2,"水洗式"]
[null,null,null,null,null,null,null,null,null,null,null,null,null,null,null,null,8,2,1,"ユニットハウス"]
[null,null,null,null,null,null,null,null,null,null,null,null,null,null,null,null,8,3,1,"(諸元・規格無し)"]
[null,null,null,null,null,null,null,null,null,null,null,null,null,null,null,null,9,1,1,"4m未満"]
[null,null,null,null,null,null,null,null,null,null,null,null,null,null,null,null,9,1,2,"4m以上"]
[null,null,null,null,null,null,null,null,null,null,null,null,null,null,null,null,9,2,1,"パイプ"]
[null,null,null,null,null,null,null,null,null,null,null,null,null,null,null,null,9,2,2,"鉄板"]
[null,null,null,null,null,null,null,null,null,null,null,null,null,null,null,null,9,2,3,"プラスチック"]
[null,null,null,null,null,null,null,null,null,null,null,null,null,null,null,null,9,3,1,"(諸元・規格無し)"]
[null,null,null,null,null,null,null,null,null,null,null,null,null,null,null,null,9,4,1,"(諸元・規格無し)"]
[null,null,null,null,null,null,null,null,null,null,null,null,null,null,null,null,9,5,1,"工事看板"]
[null,null,null,null,null,null,null,null,null,null,null,null,null,null,null,null,9,5,2,"矢印方向板"]
[null,null,null,null,null,null,null,null,null,null,null,null,null,null,null,null,9,5,3,"看板取付金具"]
[null,null,null,null,null,null,null,null,null,null,null,null,null,null,null,null,9,6,1,"(諸元・規格無し)"]
[null,null,null,null,null,null,null,null,null,null,null,null,null,null,null,null,9,7,1,"(諸元・規格無し)"]
[null,null,null,null,null,null,null,null,null,null,null,null,null,null,null,null,9,8,1,"(諸元・規格無し)"]
[null,null,null,null,null,null,null,null,null,null,null,null,null,null,null,null,10,1,1,"20kg袋入"]
[null,null,null,null,null,null,null,null,null,null,null,null,null,null,null,null,10,2,1,"普通セメント25kg袋入"]
[null,null,null,null,null,null,null,null,null,null,null,null,null,null,null,null,10,2,2,"高炉セメント25kg袋入"]
[null,null,null,null,null,null,null,null,null,null,null,null,null,null,null,null,10,3,1,"25kg袋入"]
[null,null,null,null,null,null,null,null,null,null,null,null,null,null,null,null,10,4,1,"25kg袋入"]
[null,null,null,null,null,null,null,null,null,null,null,null,null,null,null,null,10,5,1,"(諸元・規格無し)"]
[null,null,null,null,null,null,null,null,null,null,null,null,null,null,null,null,11,1,1,"バラ"]
[null,null,null,null,null,null,null,null,null,null,null,null,null,null,null,null,11,1,2,"20kg袋入"]
[null,null,null,null,null,null,null,null,null,null,null,null,null,null,null,null,11,1,3,"30kg袋入"]
[null,null,null,null,null,null,null,null,null,null,null,null,null,null,null,null,11,2,1,"(諸元・規格無し)"]
[null,null,null,null,null,null,null,null,null,null,null,null,null,null,null,null,12,1,1,"耐候性袋"]
[null,null,null,null,null,null,null,null,null,null,null,null,null,null,null,null,12,1,2,"耐候性製作"]
[null,null,null,null,null,null,null,null,null,null,null,null,null,null,null,null,12,1,3,"普通袋"]
[null,null,null,null,null,null,null,null,null,null,null,null,null,null,null,null,12,1,4,"普通製作"]
[null,null,null,null,null,null,null,null,null,null,null,null,null,null,null,null,12,2,1,"袋"]
[null,null,null,null,null,null,null,null,null,null,null,null,null,null,null,null,12,2,2,"製作"]
[null,null,null,null,null,null,null,null,null,null,null,null,null,null,null,null,12,3,1,"(諸元・規格無し)"]
[null,null,null,null,null,null,null,null,null,null,null,null,null,null,null,null,13,1,1,"砂質土"]
[null,null,null,null,null,null,null,null,null,null,null,null,null,null,null,null,13,1,2,"れき質土"]
[null,null,null,null,null,null,null,null,null,null,null,null,null,null,null,null,13,1,3,"粘性土"]
[null,null,null,null,null,null,null,null,null,null,null,null,null,null,null,null,13,2,1,"砂利"]
[null,null,null,null,null,null,null,null,null,null,null,null,null,null,null,null,13,3,1,"砂"]
[null,null,null,null,null,null,null,null,null,null,null,null,null,null,null,null,13,4,1,"（再生）クラッシャーラン"]
[null,null,null,null,null,null,null,null,null,null,null,null,null,null,null,null,13,4,2,"（再生）粒調砕石"]
[null,null,null,null,null,null,null,null,null,null,null,null,null,null,null,null,13,5,1,"栗石"]
[null,null,null,null,null,null,null,null,null,null,null,null,null,null,null,null,13,6,1,"岩砕"]
[null,null,null,null,null,null,null,null,null,null,null,null,null,null,null,null,13,7,1,"改良土"]
[null,null,null,null,null,null,null,null,null,null,null,null,null,null,null,null,13,8,1,"(諸元・規格無し)"]
[null,null,null,null,null,null,null,null,null,null,null,null,null,null,null,null,14,1,1,"(諸元・規格無し)"]
[null,null,null,null,null,null,null,null,null,null,null,null,null,null,null,null,14,2,1,"(諸元・規格無し)"]
[null,null,null,null,null,null,null,null,null,null,null,null,null,null,null,null,14,3,1,"(諸元・規格無し)"]
[null,null,null,null,null,null,null,null,null,null,null,null,null,null,null,null,14,4,1,"(諸元・規格無し)"]
[null,null,null,null,null,null,null,null,null,null,null,null,null,null,null,null,14,5,1,"(諸元・規格無し)"]
[null,null,null,null,null,null,null,null,null,null,null,null,null,null,null,null,15,1,1,"(諸元・規格無し)"]
[null,null,null,null,null,null,null,null,null,null,null,null,null,null,null,null,15,2,1,"120L～200L未満"]
[null,null,null,null,null,null,null,null,null,null,null,null,null,null,null,null,15,2,2,"100L～120L未満"]
[null,null,null,null,null,null,null,null,null,null,null,null,null,null,null,null,15,2,3,"80L～100L未満"]
[null,null,null,null,null,null,null,null,null,null,null,null,null,null,null,null,15,2,4,"60L～80L未満"]
[null,null,null,null,null,null,null,null,null,null,null,null,null,null,null,null,15,2,5,"50L～60L未満"]
[null,null,null,null,null,null,null,null,null,null,null,null,null,null,null,null,15,2,6,"40L～50L未満"]
[null,null,null,null,null,null,null,null,null,null,null,null,null,null,null,null,15,2,7,"20L～40L未満"]
[null,null,null,null,null,null,null,null,null,null,null,null,null,null,null,null,15,2,8,"20L未満"]
[null,null,null,null,null,null,null,null,null,null,null,null,null,null,null,null,15,3,1,"(諸元・規格無し)"]
[null,null,null,null,null,null,null,null,null,null,null,null,null,null,null,null,15,4,1,"(諸元・規格無し)"]
[null,null,null,null,null,null,null,null,null,null,null,null,null,null,null,null,16,1,1,"＃2000　3.6m×5.4m"]
[null,null,null,null,null,null,null,null,null,null,null,null,null,null,null,null,16,1,2,"＃3000　3.6m×5.4m"]
[null,null,null,null,null,null,null,null,null,null,null,null,null,null,null,null,16,2,1,"1.0m×30m"]
[null,null,null,null,null,null,null,null,null,null,null,null,null,null,null,null,16,2,2,"1.2m×30m"]
[null,null,null,null,null,null,null,null,null,null,null,null,null,null,null,null,16,3,1,"1.8m×3.6m"]
[null,null,null,null,null,null,null,null,null,null,null,null,null,null,null,null,16,3,2,"1.8m×5.4m"]
[null,null,null,null,null,null,null,null,null,null,null,null,null,null,null,null,16,4,1,"1.8m×3.6m"]
[null,null,null,null,null,null,null,null,null,null,null,null,null,null,null,null,16,4,2,"1.8m×5.4m"]
[null,null,null,null,null,null,null,null,null,null,null,null,null,null,null,null,16,5,1,"(諸元・規格無し)"]
[null,null,null,null,null,null,null,null,null,null,null,null,null,null,null,null,17,1,1,"5.0m"]
[null,null,null,null,null,null,null,null,null,null,null,null,null,null,null,null,17,1,2,"10.0m"]
[null,null,null,null,null,null,null,null,null,null,null,null,null,null,null,null,17,1,3,"15.0m"]
[null,null,null,null,null,null,null,null,null,null,null,null,null,null,null,null,17,1,4,"20.0m"]
[null,null,null,null,null,null,null,null,null,null,null,null,null,null,null,null,17,2,1,"φ7.5㎝×長さ 2.0ｍ"]
[null,null,null,null,null,null,null,null,null,null,null,null,null,null,null,null,17,2,2,"φ11.0㎝×長さ 2.0ｍ"]
[null,null,null,null,null,null,null,null,null,null,null,null,null,null,null,null,17,2,3,"φ15.0㎝×長さ 2.0ｍ"]
[null,null,null,null,null,null,null,null,null,null,null,null,null,null,null,null,17,3,1,"シート状(50㎝×50㎝)"]
[null,null,null,null,null,null,null,null,null,null,null,null,null,null,null,null,17,3,2,"シート状(65㎝×65㎝)"]
[null,null,null,null,null,null,null,null,null,null,null,null,null,null,null,null,17,3,3,"ロール状(50㎝×50ｍ)"]
[null,null,null,null,null,null,null,null,null,null,null,null,null,null,null,null,17,3,4,"ロール状(50㎝×100ｍ)"]
[null,null,null,null,null,null,null,null,null,null,null,null,null,null,null,null,17,3,5,"ロール状(65㎝×50ｍ)"]
[null,null,null,null,null,null,null,null,null,null,null,null,null,null,null,null,17,3,6,"ロール状(65㎝×100ｍ)"]
[null,null,null,null,null,null,null,null,null,null,null,null,null,null,null,null,17,3,7,"ロール状(100㎝×100ｍ)"]
[null,null,null,null,null,null,null,null,null,null,null,null,null,null,null,null,17,3,8,"粒状（袋詰め）"]
[null,null,null,null,null,null,null,null,null,null,null,null,null,null,null,null,17,3,9,"万国旗型"]
[null,null,null,null,null,null,null,null,null,null,null,null,null,null,null,null,17,3,10,"糸状（リボン状）"]
[null,null,null,null,null,null,null,null,null,null,null,null,null,null,null,null,17,4,1,"粒状タイプ(5㎏)"]
[null,null,null,null,null,null,null,null,null,null,null,null,null,null,null,null,17,4,2,"粒状タイプ(10㎏)"]
[null,null,null,null,null,null,null,null,null,null,null,null,null,null,null,null,17,5,1,"φ300(1.0m×20m)"]
[null,null,null,null,null,null,null,null,null,null,null,null,null,null,null,null,17,5,2,"φ300(2.0m×20m)"]
[null,null,null,null,null,null,null,null,null,null,null,null,null,null,null,null,17,5,3,"φ300(3.0m以上×20m)"]
[null,null,null,null,null,null,null,null,null,null,null,null,null,null,null,null,17,5,4,"φ400(1.0m×20m)"]
[null,null,null,null,null,null,null,null,null,null,null,null,null,null,null,null,17,5,5,"φ400(2.0m×20m)"]
[null,null,null,null,null,null,null,null,null,null,null,null,null,null,null,null,17,5,6,"φ400(3.0m以上×20m)"]
[null,null,null,null,null,null,null,null,null,null,null,null,null,null,null,null,17,6,1,"(諸元・規格無し)"]
[null,null,null,null,null,null,null,null,null,null,null,null,null,null,null,null,18,1,1,"(諸元・規格無し)"]
[null,null,null,null,null,null,null,null,null,null,null,null,null,null,null,null,18,2,1,"(諸元・規格無し)"]
[null,null,null,null,null,null,null,null,null,null,null,null,null,null,null,null,18,3,1,"(諸元・規格無し)"]
[null,null,null,null,null,null,null,null,null,null,null,null,null,null,null,null,18,4,1,"(諸元・規格無し)"]
[null,null,null,null,null,null,null,null,null,null,null,null,null,null,null,null,19,1,1,"(諸元・規格無し)"]
[null,null,null,null,null,null,null,null,null,null,null,null,null,null,null,null,19,2,1,"(諸元・規格無し)"]
[null,null,null,null,null,null,null,null,null,null,null,null,null,null,null,null,19,3,1,"(諸元・規格無し)"]
[null,null,null,null,null,null,null,null,null,null,null,null,null,null,null,null,20,1,1,"トラロープ"]
[null,null,null,null,null,null,null,null,null,null,null,null,null,null,null,null,20,1,2,"ワイヤロープ"]
[null,null,null,null,null,null,null,null,null,null,null,null,null,null,null,null,20,1,3,"縄"]
[null,null,null,null,null,null,null,null,null,null,null,null,null,null,null,null,20,2,2,"普通鉄線"]
[null,null,null,null,null,null,null,null,null,null,null,null,null,null,null,null,20,2,3,"なまし鉄線"]
[null,null,null,null,null,null,null,null,null,null,null,null,null,null,null,null,20,2,4,"亜鉛メッキ鉄線"]
[null,null,null,null,null,null,null,null,null,null,null,null,null,null,null,null,20,3,1,"普通合板900×1800"]
[null,null,null,null,null,null,null,null,null,null,null,null,null,null,null,null,20,3,2,"化粧合板900×1800"]
[null,null,null,null,null,null,null,null,null,null,null,null,null,null,null,null,20,4,1,"300㎜×1800㎜"]
[null,null,null,null,null,null,null,null,null,null,null,null,null,null,null,null,20,4,2,"Uクリップ"]
[null,null,null,null,null,null,null,null,null,null,null,null,null,null,null,null,20,5,2,"平均厚100㎜"]
[null,null,null,null,null,null,null,null,null,null,null,null,null,null,null,null,20,5,3,"平均厚200㎜"]
[null,null,null,null,null,null,null,null,null,null,null,null,null,null,null,null,20,6,2,"3.2×150×500×1200㎜"]
[null,null,null,null,null,null,null,null,null,null,null,null,null,null,null,null,20,6,3,"4.0×150×500×1200㎜"]
[null,null,null,null,null,null,null,null,null,null,null,null,null,null,null,null,20,7,1,"3.2×100×φ450㎜"]
[null,null,null,null,null,null,null,null,null,null,null,null,null,null,null,null,20,7,2,"4.2×100×φ450㎜"]
[null,null,null,null,null,null,null,null,null,null,null,null,null,null,null,null,20,8,1,"50㎝×100㎝　ﾒｯｷ鉄線"]
[null,null,null,null,null,null,null,null,null,null,null,null,null,null,null,null,20,8,2,"50㎝×100㎝　被覆鉄線"]
[null,null,null,null,null,null,null,null,null,null,null,null,null,null,null,null,20,9,1,"(諸元・規格無し)"]